{"text_format":"2","workbook":"xlsx","n_sheets":2,"sheets":["菜单","缩略词"],"not_rendered":{"charts":0,"images":0,"macros":0,"external_links":0,"defined_names":1,"comments":0,"pivot_tables":0},"unopened":[],"bounds":{"document_bytes":16777216,"sheet_cells":100000,"run_cost":"one","rows_first":2000,"rows_last":500,"rows_between":2000,"halvings":0,"cell_chars":16384,"cell_head_chars":4096},"cells_cut":0,"cells_raw":0,"read":"whole","date_system":"1900"}

{"sheet":"菜单","index":0,"n_rows":144,"n_cols":17,"rows_kept":144,"cut":false,"hidden":false,"merged":[]}
["Id","Pid","Pids","Name","FullName","Code","Type","Icon","Router","Component","Permission","OpenType","Visible","Sort","Status","C# Code"]
[10000,0,{"$f":"\"[\"&B2&\"],\"","v":"[0],"},"工作台",null,"wb","MenuType.MENU","home",{"$f":"\"/\"&F2","v":"/wb"},null,null,"MenuOpenType.COMPONENT","true",{"$f":"A2","v":10000},"CommonStatus.ENABLE",{"$f":"\"            new SysMenu { Id = \"&A2&\", Pid = \"&B2&\", Pids = \"\"\"&C2&\"\"\", Name = \"\"\"&D2&\"\"\", Code = \"\"\"&F2&\"\"\", MenuType = \"&G2&\", Icon = \"\"\"&H2&\"\"\", Router = \"\"\"&I2&\"\"\", Component = \"\"\"&J2&\"\"\", Permission = \"\"\"&K2&\"\"\", OpenType = \"&L2&\", Visible = \"&M2&\", Sort = \"&N2&\", Status = \"&O2&\" },\"","v":"            new SysMenu { Id = 10000, Pid = 0, Pids = \"[0],\", Name = \"工作台\", Code = \"wb\", MenuType = MenuType.MENU, Icon = \"home\", Router = \"/wb\", Component = \"\", Permission = \"\", OpenType = MenuOpenType.COMPONENT, Visible = true, Sort = 10000, Status = CommonStatus.ENABLE },"},{"$f":"UPPER(SUBSTITUTE(SUBSTITUTE(K2,\"-\",\"_\"),\".\",\"_\"))","v":""}]
[]
[10100,0,{"$f":"\"[\"&B4&\"],\"","v":"[0],"},"基础资料",{"$f":"D4","v":"基础资料"},"base","MenuType.FOLDER","apps",{"$f":"\"/\"&F4","v":"/base"},null,null,"MenuOpenType.NONE","true",{"$f":"A4","v":10100},"CommonStatus.ENABLE",{"$f":"\"            new SysMenu { Id = \"&A4&\", Pid = \"&B4&\", Pids = \"\"\"&C4&\"\"\", Name = \"\"\"&D4&\"\"\", Code = \"\"\"&F4&\"\"\", MenuType = \"&G4&\", Icon = \"\"\"&H4&\"\"\", Router = \"\"\"&I4&\"\"\", Component = \"\"\"&J4&\"\"\", Permission = \"\"\"&K4&\"\"\", OpenType = \"&L4&\", Visible = \"&M4&\", Sort = \"&N4&\", Status = \"&O4&\" },\"","v":"            new SysMenu { Id = 10100, Pid = 0, Pids = \"[0],\", Name = \"基础资料\", Code = \"base\", MenuType = MenuType.FOLDER, Icon = \"apps\", Router = \"/base\", Component = \"\", Permission = \"\", OpenType = MenuOpenType.NONE, Visible = true, Sort = 10100, Status = CommonStatus.ENABLE },"},""]
[10101,{"$f":"A$4","v":10100},{"$f":"C$4&\"[\"&B5&\"],\"","v":"[0],[10100],"},"班级信息",{"$f":"E$4&\"/\"&D5","v":"基础资料/班级信息"},"class","MenuType.MENU",null,{"$f":"I$4&\"/\"&F5","v":"/base/class"},null,null,"MenuOpenType.COMPONENT","true",10,"CommonStatus.ENABLE",{"$f":"\"            new SysMenu { Id = \"&A5&\", Pid = \"&B5&\", Pids = \"\"\"&C5&\"\"\", Name = \"\"\"&D5&\"\"\", Code = \"\"\"&F5&\"\"\", MenuType = \"&G5&\", Icon = \"\"\"&H5&\"\"\", Router = \"\"\"&I5&\"\"\", Component = \"\"\"&J5&\"\"\", Permission = \"\"\"&K5&\"\"\", OpenType = \"&L5&\", Visible = \"&M5&\", Sort = \"&N5&\", Status = \"&O5&\" },\"","v":"            new SysMenu { Id = 10101, Pid = 10100, Pids = \"[0],[10100],\", Name = \"班级信息\", Code = \"class\", MenuType = MenuType.MENU, Icon = \"\", Router = \"/base/class\", Component = \"\", Permission = \"\", OpenType = MenuOpenType.COMPONENT, Visible = true, Sort = 10, Status = CommonStatus.ENABLE },"},""]
[10102,{"$f":"A$5","v":10101},{"$f":"C$5&\"[\"&B6&\"],\"","v":"[0],[10100],[10101],"},"添加",{"$f":"E$5&\"/\"&D6","v":"基础资料/班级信息/添加"},"add","MenuType.BUTTON",null,null,null,{"$f":"F$4&\".\"&F$5&\".\"&F6","v":"base.class.add"},"MenuOpenType.NONE","true",0,"CommonStatus.ENABLE","            new SysMenu { Id = 10102, Pid = 10101, Pids = \"[0],[10100],[10101],\", Name = \"添加\", Code = \"add\", MenuType = MenuType.BUTTON, Icon = \"\", Router = \"\", Component = \"\", Permission = \"base.class.add\", OpenType = MenuOpenType.NONE, Visible = true, Sort = 0, Status = CommonStatus.ENABLE },","BASE_CLASS_ADD"]
[10103,{"$f":"A$5","v":10101},{"$f":"C$5&\"[\"&B7&\"],\"","v":"[0],[10100],[10101],"},"修改",{"$f":"E$5&\"/\"&D7","v":"基础资料/班级信息/修改"},"edit","MenuType.BUTTON",null,null,null,{"$f":"F$4&\".\"&F$5&\".\"&F7","v":"base.class.edit"},"MenuOpenType.NONE","true",0,"CommonStatus.ENABLE","            new SysMenu { Id = 10103, Pid = 10101, Pids = \"[0],[10100],[10101],\", Name = \"修改\", Code = \"edit\", MenuType = MenuType.BUTTON, Icon = \"\", Router = \"\", Component = \"\", Permission = \"base.class.edit\", OpenType = MenuOpenType.NONE, Visible = true, Sort = 0, Status = CommonStatus.ENABLE },","BASE_CLASS_EDIT"]
[10104,{"$f":"A$5","v":10101},{"$f":"C$5&\"[\"&B8&\"],\"","v":"[0],[10100],[10101],"},"删除",{"$f":"E$5&\"/\"&D8","v":"基础资料/班级信息/删除"},"del","MenuType.BUTTON",null,null,null,{"$f":"F$4&\".\"&F$5&\".\"&F8","v":"base.class.del"},"MenuOpenType.NONE","true",0,"CommonStatus.ENABLE","            new SysMenu { Id = 10104, Pid = 10101, Pids = \"[0],[10100],[10101],\", Name = \"删除\", Code = \"del\", MenuType = MenuType.BUTTON, Icon = \"\", Router = \"\", Component = \"\", Permission = \"base.class.del\", OpenType = MenuOpenType.NONE, Visible = true, Sort = 0, Status = CommonStatus.ENABLE },",{"$f":"UPPER(SUBSTITUTE(SUBSTITUTE(K8,\"-\",\"_\"),\".\",\"_\"))","v":"BASE_CLASS_DEL"}]
[10105,{"$f":"A$4","v":10100},{"$f":"C$4&\"[\"&B9&\"],\"","v":"[0],[10100],"},"学生信息",{"$f":"E$4&\"/\"&D9","v":"基础资料/学生信息"},"student","MenuType.MENU",null,{"$f":"I$4&\"/\"&F9","v":"/base/student"},null,null,"MenuOpenType.COMPONENT","true",20,"CommonStatus.ENABLE","            new SysMenu { Id = 10105, Pid = 10100, Pids = \"[0],[10100],\", Name = \"学生信息\", Code = \"student\", MenuType = MenuType.MENU, Icon = \"\", Router = \"/base/student\", Component = \"\", Permission = \"\", OpenType = MenuOpenType.COMPONENT, Visible = true, Sort = 20, Status = CommonStatus.ENABLE },",""]
[10106,{"$f":"A$9","v":10105},{"$f":"C$9&\"[\"&B10&\"],\"","v":"[0],[10100],[10105],"},"添加",{"$f":"E$9&\"/\"&D10","v":"基础资料/学生信息/添加"},"add","MenuType.BUTTON",null,null,null,{"$f":"F$4&\".\"&F$9&\".\"&F10","v":"base.student.add"},"MenuOpenType.NONE","true",0,"CommonStatus.ENABLE","            new SysMenu { Id = 10106, Pid = 10105, Pids = \"[0],[10100],[10105],\", Name = \"添加\", Code = \"add\", MenuType = MenuType.BUTTON, Icon = \"\", Router = \"\", Component = \"\", Permission = \"base.student.add\", OpenType = MenuOpenType.NONE, Visible = true, Sort = 0, Status = CommonStatus.ENABLE },","BASE_STUDENT_ADD"]
[10107,{"$f":"A$9","v":10105},{"$f":"C$9&\"[\"&B11&\"],\"","v":"[0],[10100],[10105],"},"修改",{"$f":"E$9&\"/\"&D11","v":"基础资料/学生信息/修改"},"edit","MenuType.BUTTON",null,null,null,{"$f":"F$4&\".\"&F$9&\".\"&F11","v":"base.student.edit"},"MenuOpenType.NONE","true",0,"CommonStatus.ENABLE","            new SysMenu { Id = 10107, Pid = 10105, Pids = \"[0],[10100],[10105],\", Name = \"修改\", Code = \"edit\", MenuType = MenuType.BUTTON, Icon = \"\", Router = \"\", Component = \"\", Permission = \"base.student.edit\", OpenType = MenuOpenType.NONE, Visible = true, Sort = 0, Status = CommonStatus.ENABLE },","BASE_STUDENT_EDIT"]
[10108,{"$f":"A$9","v":10105},{"$f":"C$9&\"[\"&B12&\"],\"","v":"[0],[10100],[10105],"},"删除",{"$f":"E$9&\"/\"&D12","v":"基础资料/学生信息/删除"},"del","MenuType.BUTTON",null,null,null,{"$f":"F$4&\".\"&F$9&\".\"&F12","v":"base.student.del"},"MenuOpenType.NONE","true",0,"CommonStatus.ENABLE","            new SysMenu { Id = 10108, Pid = 10105, Pids = \"[0],[10100],[10105],\", Name = \"删除\", Code = \"del\", MenuType = MenuType.BUTTON, Icon = \"\", Router = \"\", Component = \"\", Permission = \"base.student.del\", OpenType = MenuOpenType.NONE, Visible = true, Sort = 0, Status = CommonStatus.ENABLE },","BASE_STUDENT_DEL"]
[10109,{"$f":"A$4","v":10100},{"$f":"C$4&\"[\"&B13&\"],\"","v":"[0],[10100],"},"教师信息",{"$f":"E$4&\"/\"&D13","v":"基础资料/教师信息"},"teacher","MenuType.MENU",null,{"$f":"I$4&\"/\"&F13","v":"/base/teacher"},null,null,"MenuOpenType.COMPONENT","true",30,"CommonStatus.ENABLE","            new SysMenu { Id = 10109, Pid = 10100, Pids = \"[0],[10100],\", Name = \"教师信息\", Code = \"teacher\", MenuType = MenuType.MENU, Icon = \"\", Router = \"/base/teacher\", Component = \"\", Permission = \"\", OpenType = MenuOpenType.COMPONENT, Visible = true, Sort = 30, Status = CommonStatus.ENABLE },",""]
[10110,{"$f":"A$13","v":10109},{"$f":"C$13&\"[\"&B14&\"],\"","v":"[0],[10100],[10109],"},"添加",{"$f":"E$13&\"/\"&D14","v":"基础资料/教师信息/添加"},"add","MenuType.BUTTON",null,null,null,{"$f":"F$4&\".\"&F$13&\".\"&F14","v":"base.teacher.add"},"MenuOpenType.NONE","true",0,"CommonStatus.ENABLE","            new SysMenu { Id = 10110, Pid = 10109, Pids = \"[0],[10100],[10109],\", Name = \"添加\", Code = \"add\", MenuType = MenuType.BUTTON, Icon = \"\", Router = \"\", Component = \"\", Permission = \"base.teacher.add\", OpenType = MenuOpenType.NONE, Visible = true, Sort = 0, Status = CommonStatus.ENABLE },","BASE_TEACHER_ADD"]
[10111,{"$f":"A$13","v":10109},{"$f":"C$13&\"[\"&B15&\"],\"","v":"[0],[10100],[10109],"},"修改",{"$f":"E$13&\"/\"&D15","v":"基础资料/教师信息/修改"},"edit","MenuType.BUTTON",null,null,null,{"$f":"F$4&\".\"&F$13&\".\"&F15","v":"base.teacher.edit"},"MenuOpenType.NONE","true",0,"CommonStatus.ENABLE","            new SysMenu { Id = 10111, Pid = 10109, Pids = \"[0],[10100],[10109],\", Name = \"修改\", Code = \"edit\", MenuType = MenuType.BUTTON, Icon = \"\", Router = \"\", Component = \"\", Permission = \"base.teacher.edit\", OpenType = MenuOpenType.NONE, Visible = true, Sort = 0, Status = CommonStatus.ENABLE },","BASE_TEACHER_EDIT"]
[10112,{"$f":"A$13","v":10109},{"$f":"C$13&\"[\"&B16&\"],\"","v":"[0],[10100],[10109],"},"删除",{"$f":"E$13&\"/\"&D16","v":"基础资料/教师信息/删除"},"del","MenuType.BUTTON",null,null,null,{"$f":"F$4&\".\"&F$13&\".\"&F16","v":"base.teacher.del"},"MenuOpenType.NONE","true",0,"CommonStatus.ENABLE","            new SysMenu { Id = 10112, Pid = 10109, Pids = \"[0],[10100],[10109],\", Name = \"删除\", Code = \"del\", MenuType = MenuType.BUTTON, Icon = \"\", Router = \"\", Component = \"\", Permission = \"base.teacher.del\", OpenType = MenuOpenType.NONE, Visible = true, Sort = 0, Status = CommonStatus.ENABLE },","BASE_TEACHER_DEL"]
[10113,{"$f":"A$4","v":10100},{"$f":"C$4&\"[\"&B17&\"],\"","v":"[0],[10100],"},"特殊学生管理",{"$f":"E$4&\"/\"&D17","v":"基础资料/特殊学生管理"},"sp-stu","MenuType.MENU",null,{"$f":"I$4&\"/\"&F17","v":"/base/sp-stu"},null,null,"MenuOpenType.COMPONENT","true",40,"CommonStatus.ENABLE","            new SysMenu { Id = 10113, Pid = 10100, Pids = \"[0],[10100],\", Name = \"特殊学生管理\", Code = \"sp-stu\", MenuType = MenuType.MENU, Icon = \"\", Router = \"/base/sp-stu\", Component = \"\", Permission = \"\", OpenType = MenuOpenType.COMPONENT, Visible = true, Sort = 40, Status = CommonStatus.ENABLE },",{"$f":"UPPER(SUBSTITUTE(SUBSTITUTE(K17,\"-\",\"_\"),\".\",\"_\"))","v":""}]
[10114,{"$f":"A$17","v":10113},{"$f":"C$17&\"[\"&B18&\"],\"","v":"[0],[10100],[10113],"},"添加",{"$f":"E$17&\"/\"&D18","v":"基础资料/特殊学生管理/添加"},"add","MenuType.BUTTON",null,null,null,{"$f":"F$4&\".\"&F$17&\".\"&F18","v":"base.sp-stu.add"},"MenuOpenType.NONE","true",0,"CommonStatus.ENABLE","            new SysMenu { Id = 10114, Pid = 10113, Pids = \"[0],[10100],[10113],\", Name = \"添加\", Code = \"add\", MenuType = MenuType.BUTTON, Icon = \"\", Router = \"\", Component = \"\", Permission = \"base.sp-stu.add\", OpenType = MenuOpenType.NONE, Visible = true, Sort = 0, Status = CommonStatus.ENABLE },",{"$f":"UPPER(SUBSTITUTE(SUBSTITUTE(K18,\"-\",\"_\"),\".\",\"_\"))","v":"BASE_SP_STU_ADD"}]
[10115,{"$f":"A$17","v":10113},{"$f":"C$17&\"[\"&B19&\"],\"","v":"[0],[10100],[10113],"},"修改",{"$f":"E$17&\"/\"&D19","v":"基础资料/特殊学生管理/修改"},"edit","MenuType.BUTTON",null,null,null,{"$f":"F$4&\".\"&F$17&\".\"&F19","v":"base.sp-stu.edit"},"MenuOpenType.NONE","true",0,"CommonStatus.ENABLE","            new SysMenu { Id = 10115, Pid = 10113, Pids = \"[0],[10100],[10113],\", Name = \"修改\", Code = \"edit\", MenuType = MenuType.BUTTON, Icon = \"\", Router = \"\", Component = \"\", Permission = \"base.sp-stu.edit\", OpenType = MenuOpenType.NONE, Visible = true, Sort = 0, Status = CommonStatus.ENABLE },",{"$f":"UPPER(SUBSTITUTE(SUBSTITUTE(K19,\"-\",\"_\"),\".\",\"_\"))","v":"BASE_SP_STU_EDIT"}]
[10116,{"$f":"A$17","v":10113},{"$f":"C$17&\"[\"&B20&\"],\"","v":"[0],[10100],[10113],"},"删除",{"$f":"E$17&\"/\"&D20","v":"基础资料/特殊学生管理/删除"},"del","MenuType.BUTTON",null,null,null,{"$f":"F$4&\".\"&F$17&\".\"&F20","v":"base.sp-stu.del"},"MenuOpenType.NONE","true",0,"CommonStatus.ENABLE","            new SysMenu { Id = 10116, Pid = 10113, Pids = \"[0],[10100],[10113],\", Name = \"删除\", Code = \"del\", MenuType = MenuType.BUTTON, Icon = \"\", Router = \"\", Component = \"\", Permission = \"base.sp-stu.del\", OpenType = MenuOpenType.NONE, Visible = true, Sort = 0, Status = CommonStatus.ENABLE },",{"$f":"UPPER(SUBSTITUTE(SUBSTITUTE(K20,\"-\",\"_\"),\".\",\"_\"))","v":"BASE_SP_STU_DEL"}]
[]
[10200,0,{"$f":"\"[\"&B22&\"],\"","v":"[0],"},"监测管理（中心）",{"$f":"D22","v":"监测管理（中心）"},"exam-c","MenuType.FOLDER","order",{"$f":"\"/\"&F22","v":"/exam-c"},null,null,"MenuOpenType.NONE","true",{"$f":"A22","v":10200},"CommonStatus.ENABLE",{"$f":"\"            new SysMenu { Id = \"&A22&\", Pid = \"&B22&\", Pids = \"\"\"&C22&\"\"\", Name = \"\"\"&D22&\"\"\", Code = \"\"\"&F22&\"\"\", MenuType = \"&G22&\", Icon = \"\"\"&H22&\"\"\", Router = \"\"\"&I22&\"\"\", Component = \"\"\"&J22&\"\"\", Permission = \"\"\"&K22&\"\"\", OpenType = \"&L22&\", Visible = \"&M22&\", Sort = \"&N22&\", Status = \"&O22&\" },\"","v":"            new SysMenu { Id = 10200, Pid = 0, Pids = \"[0],\", Name = \"监测管理（中心）\", Code = \"exam-c\", MenuType = MenuType.FOLDER, Icon = \"order\", Router = \"/exam-c\", Component = \"\", Permission = \"\", OpenType = MenuOpenType.NONE, Visible = true, Sort = 10200, Status = CommonStatus.ENABLE },"},{"$f":"UPPER(SUBSTITUTE(SUBSTITUTE(K22,\"-\",\"_\"),\".\",\"_\"))","v":""}]
[10201,{"$f":"A$22","v":10200},{"$f":"C$22&\"[\"&B23&\"],\"","v":"[0],[10200],"},"监测计划管理",{"$f":"E$22&\"/\"&D23","v":"监测管理（中心）/监测计划管理"},"plan","MenuType.MENU",null,{"$f":"I$22&\"/\"&F23","v":"/exam-c/plan"},null,null,"MenuOpenType.COMPONENT","true",10,"CommonStatus.ENABLE",{"$f":"\"            new SysMenu { Id = \"&A23&\", Pid = \"&B23&\", Pids = \"\"\"&C23&\"\"\", Name = \"\"\"&D23&\"\"\", Code = \"\"\"&F23&\"\"\", MenuType = \"&G23&\", Icon = \"\"\"&H23&\"\"\", Router = \"\"\"&I23&\"\"\", Component = \"\"\"&J23&\"\"\", Permission = \"\"\"&K23&\"\"\", OpenType = \"&L23&\", Visible = \"&M23&\", Sort = \"&N23&\", Status = \"&O23&\" },\"","v":"            new SysMenu { Id = 10201, Pid = 10200, Pids = \"[0],[10200],\", Name = \"监测计划管理\", Code = \"plan\", MenuType = MenuType.MENU, Icon = \"\", Router = \"/exam-c/plan\", Component = \"\", Permission = \"\", OpenType = MenuOpenType.COMPONENT, Visible = true, Sort = 10, Status = CommonStatus.ENABLE },"},{"$f":"UPPER(SUBSTITUTE(SUBSTITUTE(K23,\"-\",\"_\"),\".\",\"_\"))","v":""}]
[10202,{"$f":"A$23","v":10201},{"$f":"C$23&\"[\"&B24&\"],\"","v":"[0],[10200],[10201],"},"添加",{"$f":"E$23&\"/\"&D24","v":"监测管理（中心）/监测计划管理/添加"},"add","MenuType.BUTTON",null,null,null,{"$f":"F$22&\".\"&F$23&\".\"&F24","v":"exam-c.plan.add"},"MenuOpenType.NONE","true",0,"CommonStatus.ENABLE","            new SysMenu { Id = 10202, Pid = 10201, Pids = \"[0],[10200],[10201],\", Name = \"添加\", Code = \"add\", MenuType = MenuType.BUTTON, Icon = \"\", Router = \"\", Component = \"\", Permission = \"exam-c.plan.add\", OpenType = MenuOpenType.NONE, Visible = true, Sort = 0, Status = CommonStatus.ENABLE },","EXAM_C_PLAN_ADD"]
[10203,{"$f":"A$23","v":10201},{"$f":"C$23&\"[\"&B25&\"],\"","v":"[0],[10200],[10201],"},"修改",{"$f":"E$23&\"/\"&D25","v":"监测管理（中心）/监测计划管理/修改"},"edit","MenuType.BUTTON",null,null,null,{"$f":"F$22&\".\"&F$23&\".\"&F25","v":"exam-c.plan.edit"},"MenuOpenType.NONE","true",0,"CommonStatus.ENABLE","            new SysMenu { Id = 10203, Pid = 10201, Pids = \"[0],[10200],[10201],\", Name = \"修改\", Code = \"edit\", MenuType = MenuType.BUTTON, Icon = \"\", Router = \"\", Component = \"\", Permission = \"exam-c.plan.edit\", OpenType = MenuOpenType.NONE, Visible = true, Sort = 0, Status = CommonStatus.ENABLE },","EXAM_C_PLAN_EDIT"]
[10204,{"$f":"A$23","v":10201},{"$f":"C$23&\"[\"&B26&\"],\"","v":"[0],[10200],[10201],"},"删除",{"$f":"E$23&\"/\"&D26","v":"监测管理（中心）/监测计划管理/删除"},"del","MenuType.BUTTON",null,null,null,{"$f":"F$22&\".\"&F$23&\".\"&F26","v":"exam-c.plan.del"},"MenuOpenType.NONE","true",0,"CommonStatus.ENABLE","            new SysMenu { Id = 10204, Pid = 10201, Pids = \"[0],[10200],[10201],\", Name = \"删除\", Code = \"del\", MenuType = MenuType.BUTTON, Icon = \"\", Router = \"\", Component = \"\", Permission = \"exam-c.plan.del\", OpenType = MenuOpenType.NONE, Visible = true, Sort = 0, Status = CommonStatus.ENABLE },","EXAM_C_PLAN_DEL"]
[10205,{"$f":"A$23","v":10201},{"$f":"C$23&\"[\"&B27&\"],\"","v":"[0],[10200],[10201],"},"发布",{"$f":"E$23&\"/\"&D27","v":"监测管理（中心）/监测计划管理/发布"},"publish","MenuType.BUTTON",null,null,null,{"$f":"F$22&\".\"&F$23&\".\"&F27","v":"exam-c.plan.publish"},"MenuOpenType.NONE","true",0,"CommonStatus.ENABLE","            new SysMenu { Id = 10205, Pid = 10201, Pids = \"[0],[10200],[10201],\", Name = \"发布\", Code = \"publish\", MenuType = MenuType.BUTTON, Icon = \"\", Router = \"\", Component = \"\", Permission = \"exam-c.plan.publish\", OpenType = MenuOpenType.NONE, Visible = true, Sort = 0, Status = CommonStatus.ENABLE },","EXAM_C_PLAN_PUBLISH"]
[10206,{"$f":"A$22","v":10200},{"$f":"C$22&\"[\"&B28&\"],\"","v":"[0],[10200],"},"监测学生管理",{"$f":"E$22&\"/\"&D28","v":"监测管理（中心）/监测学生管理"},"stu","MenuType.MENU",null,{"$f":"I$22&\"/\"&F28","v":"/exam-c/stu"},null,null,"MenuOpenType.COMPONENT","true",20,"CommonStatus.ENABLE","            new SysMenu { Id = 10206, Pid = 10200, Pids = \"[0],[10200],\", Name = \"监测学生管理\", Code = \"stu\", MenuType = MenuType.MENU, Icon = \"\", Router = \"/exam-c/stu\", Component = \"\", Permission = \"\", OpenType = MenuOpenType.COMPONENT, Visible = true, Sort = 20, Status = CommonStatus.ENABLE },",""]
[10207,{"$f":"A$28","v":10206},{"$f":"C$28&\"[\"&B29&\"],\"","v":"[0],[10200],[10206],"},"添加",{"$f":"E$28&\"/\"&D29","v":"监测管理（中心）/监测学生管理/添加"},"add","MenuType.BUTTON",null,null,null,{"$f":"F$22&\".\"&F$28&\".\"&F29","v":"exam-c.stu.add"},"MenuOpenType.NONE","true",0,"CommonStatus.ENABLE","            new SysMenu { Id = 10207, Pid = 10206, Pids = \"[0],[10200],[10206],\", Name = \"添加\", Code = \"add\", MenuType = MenuType.BUTTON, Icon = \"\", Router = \"\", Component = \"\", Permission = \"exam-c.stu.add\", OpenType = MenuOpenType.NONE, Visible = true, Sort = 0, Status = CommonStatus.ENABLE },","EXAM_C_STU_ADD"]
[10208,{"$f":"A$28","v":10206},{"$f":"C$28&\"[\"&B30&\"],\"","v":"[0],[10200],[10206],"},"修改",{"$f":"E$28&\"/\"&D30","v":"监测管理（中心）/监测学生管理/修改"},"edit","MenuType.BUTTON",null,null,null,{"$f":"F$22&\".\"&F$28&\".\"&F30","v":"exam-c.stu.edit"},"MenuOpenType.NONE","true",0,"CommonStatus.ENABLE","            new SysMenu { Id = 10208, Pid = 10206, Pids = \"[0],[10200],[10206],\", Name = \"修改\", Code = \"edit\", MenuType = MenuType.BUTTON, Icon = \"\", Router = \"\", Component = \"\", Permission = \"exam-c.stu.edit\", OpenType = MenuOpenType.NONE, Visible = true, Sort = 0, Status = CommonStatus.ENABLE },","EXAM_C_STU_EDIT"]
[10209,{"$f":"A$28","v":10206},{"$f":"C$28&\"[\"&B31&\"],\"","v":"[0],[10200],[10206],"},"删除",{"$f":"E$28&\"/\"&D31","v":"监测管理（中心）/监测学生管理/删除"},"del","MenuType.BUTTON",null,null,null,{"$f":"F$22&\".\"&F$28&\".\"&F31","v":"exam-c.stu.del"},"MenuOpenType.NONE","true",0,"CommonStatus.ENABLE","            new SysMenu { Id = 10209, Pid = 10206, Pids = \"[0],[10200],[10206],\", Name = \"删除\", Code = \"del\", MenuType = MenuType.BUTTON, Icon = \"\", Router = \"\", Component = \"\", Permission = \"exam-c.stu.del\", OpenType = MenuOpenType.NONE, Visible = true, Sort = 0, Status = CommonStatus.ENABLE },","EXAM_C_STU_DEL"]
[10210,{"$f":"A$28","v":10206},{"$f":"C$28&\"[\"&B32&\"],\"","v":"[0],[10200],[10206],"},"下载",{"$f":"E$28&\"/\"&D32","v":"监测管理（中心）/监测学生管理/下载"},"download","MenuType.BUTTON",null,null,null,{"$f":"F$22&\".\"&F$28&\".\"&F32","v":"exam-c.stu.download"},"MenuOpenType.NONE","true",0,"CommonStatus.ENABLE","            new SysMenu { Id = 10210, Pid = 10206, Pids = \"[0],[10200],[10206],\", Name = \"下载\", Code = \"download\", MenuType = MenuType.BUTTON, Icon = \"\", Router = \"\", Component = \"\", Permission = \"exam-c.stu.download\", OpenType = MenuOpenType.NONE, Visible = true, Sort = 0, Status = CommonStatus.ENABLE },","EXAM_C_STU_DOWNLOAD"]
[10211,{"$f":"A$22","v":10200},{"$f":"C$22&\"[\"&B33&\"],\"","v":"[0],[10200],"},"监测抽样管理",{"$f":"E$22&\"/\"&D33","v":"监测管理（中心）/监测抽样管理"},"sample","MenuType.MENU",null,{"$f":"I$22&\"/\"&F33","v":"/exam-c/sample"},null,null,"MenuOpenType.COMPONENT","true",30,"CommonStatus.ENABLE","            new SysMenu { Id = 10211, Pid = 10200, Pids = \"[0],[10200],\", Name = \"监测抽样管理\", Code = \"sample\", MenuType = MenuType.MENU, Icon = \"\", Router = \"/exam-c/sample\", Component = \"\", Permission = \"\", OpenType = MenuOpenType.COMPONENT, Visible = true, Sort = 30, Status = CommonStatus.ENABLE },",{"$f":"UPPER(SUBSTITUTE(SUBSTITUTE(K33,\"-\",\"_\"),\".\",\"_\"))","v":""}]
[10212,{"$f":"A$33","v":10211},{"$f":"C$33&\"[\"&B34&\"],\"","v":"[0],[10200],[10211],"},"添加",{"$f":"E$33&\"/\"&D34","v":"监测管理（中心）/监测抽样管理/添加"},"add","MenuType.BUTTON",null,null,null,{"$f":"F$22&\".\"&F$33&\".\"&F34","v":"exam-c.sample.add"},"MenuOpenType.NONE","true",0,"CommonStatus.ENABLE","            new SysMenu { Id = 10212, Pid = 10211, Pids = \"[0],[10200],[10211],\", Name = \"添加\", Code = \"add\", MenuType = MenuType.BUTTON, Icon = \"\", Router = \"\", Component = \"\", Permission = \"exam-c.sample.add\", OpenType = MenuOpenType.NONE, Visible = true, Sort = 0, Status = CommonStatus.ENABLE },",{"$f":"UPPER(SUBSTITUTE(SUBSTITUTE(K34,\"-\",\"_\"),\".\",\"_\"))","v":"EXAM_C_SAMPLE_ADD"}]
[10213,10211,"[0],[10200],[10211],","修改","监测管理（中心）/监测抽样管理/修改","edit","MenuType.BUTTON",null,null,null,"exam-c.sample.edit","MenuOpenType.NONE","true",0,"CommonStatus.ENABLE","            new SysMenu { Id = 10213, Pid = 10211, Pids = \"[0],[10200],[10211],\", Name = \"修改\", Code = \"edit\", MenuType = MenuType.BUTTON, Icon = \"\", Router = \"\", Component = \"\", Permission = \"exam-c.sample.edit\", OpenType = MenuOpenType.NONE, Visible = true, Sort = 0, Status = CommonStatus.ENABLE },","EXAM_C_SAMPLE_EDIT"]
[10214,10211,"[0],[10200],[10211],","删除","监测管理（中心）/监测抽样管理/删除","del","MenuType.BUTTON",null,null,null,"exam-c.sample.del","MenuOpenType.NONE","true",0,"CommonStatus.ENABLE","            new SysMenu { Id = 10214, Pid = 10211, Pids = \"[0],[10200],[10211],\", Name = \"删除\", Code = \"del\", MenuType = MenuType.BUTTON, Icon = \"\", Router = \"\", Component = \"\", Permission = \"exam-c.sample.del\", OpenType = MenuOpenType.NONE, Visible = true, Sort = 0, Status = CommonStatus.ENABLE },","EXAM_C_SAMPLE_DEL"]
[10215,10211,"[0],[10200],[10211],","下载","监测管理（中心）/监测抽样管理/下载","download","MenuType.BUTTON",null,null,null,"exam-c.sample.download","MenuOpenType.NONE","true",0,"CommonStatus.ENABLE","            new SysMenu { Id = 10215, Pid = 10211, Pids = \"[0],[10200],[10211],\", Name = \"下载\", Code = \"download\", MenuType = MenuType.BUTTON, Icon = \"\", Router = \"\", Component = \"\", Permission = \"exam-c.sample.download\", OpenType = MenuOpenType.NONE, Visible = true, Sort = 0, Status = CommonStatus.ENABLE },","EXAM_C_SAMPLE_DOWNLOAD"]
[10216,{"$f":"A$33","v":10211},{"$f":"C$33&\"[\"&B38&\"],\"","v":"[0],[10200],[10211],"},"发布",{"$f":"E$33&\"/\"&D38","v":"监测管理（中心）/监测抽样管理/发布"},"publish","MenuType.BUTTON",null,null,null,{"$f":"F$22&\".\"&F$33&\".\"&F38","v":"exam-c.sample.publish"},"MenuOpenType.NONE","true",0,"CommonStatus.ENABLE","            new SysMenu { Id = 10216, Pid = 10211, Pids = \"[0],[10200],[10211],\", Name = \"发布\", Code = \"publish\", MenuType = MenuType.BUTTON, Icon = \"\", Router = \"\", Component = \"\", Permission = \"exam-c.sample.publish\", OpenType = MenuOpenType.NONE, Visible = true, Sort = 0, Status = CommonStatus.ENABLE },","EXAM_C_SAMPLE_PUBLISH"]
[10217,{"$f":"A$22","v":10200},{"$f":"C$22&\"[\"&B39&\"],\"","v":"[0],[10200],"},"特殊学生管理",{"$f":"E$22&\"/\"&D39","v":"监测管理（中心）/特殊学生管理"},"sp-stu","MenuType.MENU",null,{"$f":"I$22&\"/\"&F39","v":"/exam-c/sp-stu"},null,null,"MenuOpenType.COMPONENT","true",40,"CommonStatus.ENABLE","            new SysMenu { Id = 10217, Pid = 10200, Pids = \"[0],[10200],\", Name = \"特殊学生管理\", Code = \"sp-stu\", MenuType = MenuType.MENU, Icon = \"\", Router = \"/exam-c/sp-stu\", Component = \"\", Permission = \"\", OpenType = MenuOpenType.COMPONENT, Visible = true, Sort = 40, Status = CommonStatus.ENABLE },",""]
[10218,{"$f":"A$39","v":10217},{"$f":"C$39&\"[\"&B40&\"],\"","v":"[0],[10200],[10217],"},"添加",{"$f":"E$39&\"/\"&D40","v":"监测管理（中心）/特殊学生管理/添加"},"add","MenuType.BUTTON",null,null,null,{"$f":"F$22&\".\"&F$39&\".\"&F40","v":"exam-c.sp-stu.add"},"MenuOpenType.NONE","true",0,"CommonStatus.ENABLE","            new SysMenu { Id = 10218, Pid = 10217, Pids = \"[0],[10200],[10217],\", Name = \"添加\", Code = \"add\", MenuType = MenuType.BUTTON, Icon = \"\", Router = \"\", Component = \"\", Permission = \"exam-c.sp-stu.add\", OpenType = MenuOpenType.NONE, Visible = true, Sort = 0, Status = CommonStatus.ENABLE },","EXAM_C_SP_STU_ADD"]
[10219,{"$f":"A$39","v":10217},{"$f":"C$39&\"[\"&B41&\"],\"","v":"[0],[10200],[10217],"},"修改",{"$f":"E$39&\"/\"&D41","v":"监测管理（中心）/特殊学生管理/修改"},"edit","MenuType.BUTTON",null,null,null,{"$f":"F$22&\".\"&F$39&\".\"&F41","v":"exam-c.sp-stu.edit"},"MenuOpenType.NONE","true",0,"CommonStatus.ENABLE","            new SysMenu { Id = 10219, Pid = 10217, Pids = \"[0],[10200],[10217],\", Name = \"修改\", Code = \"edit\", MenuType = MenuType.BUTTON, Icon = \"\", Router = \"\", Component = \"\", Permission = \"exam-c.sp-stu.edit\", OpenType = MenuOpenType.NONE, Visible = true, Sort = 0, Status = CommonStatus.ENABLE },","EXAM_C_SP_STU_EDIT"]
[10220,{"$f":"A$39","v":10217},{"$f":"C$39&\"[\"&B42&\"],\"","v":"[0],[10200],[10217],"},"删除",{"$f":"E$39&\"/\"&D42","v":"监测管理（中心）/特殊学生管理/删除"},"del","MenuType.BUTTON",null,null,null,{"$f":"F$22&\".\"&F$39&\".\"&F42","v":"exam-c.sp-stu.del"},"MenuOpenType.NONE","true",0,"CommonStatus.ENABLE","            new SysMenu { Id = 10220, Pid = 10217, Pids = \"[0],[10200],[10217],\", Name = \"删除\", Code = \"del\", MenuType = MenuType.BUTTON, Icon = \"\", Router = \"\", Component = \"\", Permission = \"exam-c.sp-stu.del\", OpenType = MenuOpenType.NONE, Visible = true, Sort = 0, Status = CommonStatus.ENABLE },","EXAM_C_SP_STU_DEL"]
[10221,{"$f":"A$39","v":10217},{"$f":"C$39&\"[\"&B43&\"],\"","v":"[0],[10200],[10217],"},"提交",{"$f":"E$39&\"/\"&D43","v":"监测管理（中心）/特殊学生管理/提交"},"submit","MenuType.BUTTON",null,null,null,{"$f":"F$22&\".\"&F$39&\".\"&F43","v":"exam-c.sp-stu.submit"},"MenuOpenType.NONE","true",0,"CommonStatus.ENABLE","            new SysMenu { Id = 10221, Pid = 10217, Pids = \"[0],[10200],[10217],\", Name = \"提交\", Code = \"submit\", MenuType = MenuType.BUTTON, Icon = \"\", Router = \"\", Component = \"\", Permission = \"exam-c.sp-stu.submit\", OpenType = MenuOpenType.NONE, Visible = true, Sort = 0, Status = CommonStatus.ENABLE },","EXAM_C_SP_STU_SUBMIT"]
[10222,{"$f":"A$39","v":10217},{"$f":"C$39&\"[\"&B44&\"],\"","v":"[0],[10200],[10217],"},"审核",{"$f":"E$39&\"/\"&D44","v":"监测管理（中心）/特殊学生管理/审核"},"audit","MenuType.BUTTON",null,null,null,{"$f":"F$22&\".\"&F$39&\".\"&F44","v":"exam-c.sp-stu.audit"},"MenuOpenType.NONE","true",0,"CommonStatus.ENABLE","            new SysMenu { Id = 10222, Pid = 10217, Pids = \"[0],[10200],[10217],\", Name = \"审核\", Code = \"audit\", MenuType = MenuType.BUTTON, Icon = \"\", Router = \"\", Component = \"\", Permission = \"exam-c.sp-stu.audit\", OpenType = MenuOpenType.NONE, Visible = true, Sort = 0, Status = CommonStatus.ENABLE },","EXAM_C_SP_STU_AUDIT"]
[10223,{"$f":"A$39","v":10217},{"$f":"C$39&\"[\"&B45&\"],\"","v":"[0],[10200],[10217],"},"下载",{"$f":"E$39&\"/\"&D45","v":"监测管理（中心）/特殊学生管理/下载"},"download","MenuType.BUTTON",null,null,null,{"$f":"F$22&\".\"&F$39&\".\"&F45","v":"exam-c.sp-stu.download"},"MenuOpenType.NONE","true",0,"CommonStatus.ENABLE","            new SysMenu { Id = 10223, Pid = 10217, Pids = \"[0],[10200],[10217],\", Name = \"下载\", Code = \"download\", MenuType = MenuType.BUTTON, Icon = \"\", Router = \"\", Component = \"\", Permission = \"exam-c.sp-stu.download\", OpenType = MenuOpenType.NONE, Visible = true, Sort = 0, Status = CommonStatus.ENABLE },","EXAM_C_SP_STU_DOWNLOAD"]
[10224,{"$f":"A$22","v":10200},{"$f":"C$22&\"[\"&B46&\"],\"","v":"[0],[10200],"},"教师学科管理",{"$f":"E$22&\"/\"&D46","v":"监测管理（中心）/教师学科管理"},"t-course","MenuType.MENU",null,{"$f":"I$22&\"/\"&F46","v":"/exam-c/t-course"},null,null,"MenuOpenType.COMPONENT","true",50,"CommonStatus.ENABLE","            new SysMenu { Id = 10224, Pid = 10200, Pids = \"[0],[10200],\", Name = \"教师学科管理\", Code = \"t-course\", MenuType = MenuType.MENU, Icon = \"\", Router = \"/exam-c/t-course\", Component = \"\", Permission = \"\", OpenType = MenuOpenType.COMPONENT, Visible = true, Sort = 50, Status = CommonStatus.ENABLE },",{"$f":"UPPER(SUBSTITUTE(SUBSTITUTE(K46,\"-\",\"_\"),\".\",\"_\"))","v":""}]
[10225,{"$f":"A$46","v":10224},{"$f":"C$46&\"[\"&B47&\"],\"","v":"[0],[10200],[10224],"},"添加",{"$f":"E$46&\"/\"&D47","v":"监测管理（中心）/教师学科管理/添加"},"add","MenuType.BUTTON",null,null,null,{"$f":"F$22&\".\"&F$46&\".\"&F47","v":"exam-c.t-course.add"},"MenuOpenType.NONE","true",0,"CommonStatus.ENABLE","            new SysMenu { Id = 10225, Pid = 10224, Pids = \"[0],[10200],[10224],\", Name = \"添加\", Code = \"add\", MenuType = MenuType.BUTTON, Icon = \"\", Router = \"\", Component = \"\", Permission = \"exam-c.t-course.add\", OpenType = MenuOpenType.NONE, Visible = true, Sort = 0, Status = CommonStatus.ENABLE },",{"$f":"UPPER(SUBSTITUTE(SUBSTITUTE(K47,\"-\",\"_\"),\".\",\"_\"))","v":"EXAM_C_T_COURSE_ADD"}]
[10226,{"$f":"A$46","v":10224},{"$f":"C$46&\"[\"&B48&\"],\"","v":"[0],[10200],[10224],"},"修改",{"$f":"E$46&\"/\"&D48","v":"监测管理（中心）/教师学科管理/修改"},"edit","MenuType.BUTTON",null,null,null,{"$f":"F$22&\".\"&F$46&\".\"&F48","v":"exam-c.t-course.edit"},"MenuOpenType.NONE","true",0,"CommonStatus.ENABLE","            new SysMenu { Id = 10226, Pid = 10224, Pids = \"[0],[10200],[10224],\", Name = \"修改\", Code = \"edit\", MenuType = MenuType.BUTTON, Icon = \"\", Router = \"\", Component = \"\", Permission = \"exam-c.t-course.edit\", OpenType = MenuOpenType.NONE, Visible = true, Sort = 0, Status = CommonStatus.ENABLE },",{"$f":"UPPER(SUBSTITUTE(SUBSTITUTE(K48,\"-\",\"_\"),\".\",\"_\"))","v":"EXAM_C_T_COURSE_EDIT"}]
[10227,{"$f":"A$46","v":10224},{"$f":"C$46&\"[\"&B49&\"],\"","v":"[0],[10200],[10224],"},"删除",{"$f":"E$46&\"/\"&D49","v":"监测管理（中心）/教师学科管理/删除"},"del","MenuType.BUTTON",null,null,null,{"$f":"F$22&\".\"&F$46&\".\"&F49","v":"exam-c.t-course.del"},"MenuOpenType.NONE","true",0,"CommonStatus.ENABLE","            new SysMenu { Id = 10227, Pid = 10224, Pids = \"[0],[10200],[10224],\", Name = \"删除\", Code = \"del\", MenuType = MenuType.BUTTON, Icon = \"\", Router = \"\", Component = \"\", Permission = \"exam-c.t-course.del\", OpenType = MenuOpenType.NONE, Visible = true, Sort = 0, Status = CommonStatus.ENABLE },",{"$f":"UPPER(SUBSTITUTE(SUBSTITUTE(K49,\"-\",\"_\"),\".\",\"_\"))","v":"EXAM_C_T_COURSE_DEL"}]
[10228,{"$f":"A$46","v":10224},{"$f":"C$46&\"[\"&B50&\"],\"","v":"[0],[10200],[10224],"},"下载",{"$f":"E$46&\"/\"&D50","v":"监测管理（中心）/教师学科管理/下载"},"download","MenuType.BUTTON",null,null,null,{"$f":"F$22&\".\"&F$46&\".\"&F50","v":"exam-c.t-course.download"},"MenuOpenType.NONE","true",0,"CommonStatus.ENABLE","            new SysMenu { Id = 10228, Pid = 10224, Pids = \"[0],[10200],[10224],\", Name = \"下载\", Code = \"download\", MenuType = MenuType.BUTTON, Icon = \"\", Router = \"\", Component = \"\", Permission = \"exam-c.t-course.download\", OpenType = MenuOpenType.NONE, Visible = true, Sort = 0, Status = CommonStatus.ENABLE },",{"$f":"UPPER(SUBSTITUTE(SUBSTITUTE(K50,\"-\",\"_\"),\".\",\"_\"))","v":"EXAM_C_T_COURSE_DOWNLOAD"}]
[10229,{"$f":"A$22","v":10200},{"$f":"C$22&\"[\"&B51&\"],\"","v":"[0],[10200],"},"缺测替补管理",{"$f":"E$22&\"/\"&D51","v":"监测管理（中心）/缺测替补管理"},"absent","MenuType.MENU",null,{"$f":"I$22&\"/\"&F51","v":"/exam-c/absent"},null,null,"MenuOpenType.COMPONENT","true",60,"CommonStatus.ENABLE","            new SysMenu { Id = 10229, Pid = 10200, Pids = \"[0],[10200],\", Name = \"缺测替补管理\", Code = \"absent\", MenuType = MenuType.MENU, Icon = \"\", Router = \"/exam-c/absent\", Component = \"\", Permission = \"\", OpenType = MenuOpenType.COMPONENT, Visible = true, Sort = 60, Status = CommonStatus.ENABLE },",{"$f":"UPPER(SUBSTITUTE(SUBSTITUTE(K51,\"-\",\"_\"),\".\",\"_\"))","v":""}]
[10230,{"$f":"A$51","v":10229},{"$f":"C$51&\"[\"&B52&\"],\"","v":"[0],[10200],[10229],"},"添加",{"$f":"E$51&\"/\"&D52","v":"监测管理（中心）/缺测替补管理/添加"},"add","MenuType.BUTTON",null,null,null,{"$f":"F$22&\".\"&F$51&\".\"&F52","v":"exam-c.absent.add"},"MenuOpenType.NONE","true",0,"CommonStatus.ENABLE","            new SysMenu { Id = 10230, Pid = 10229, Pids = \"[0],[10200],[10229],\", Name = \"添加\", Code = \"add\", MenuType = MenuType.BUTTON, Icon = \"\", Router = \"\", Component = \"\", Permission = \"exam-c.absent.add\", OpenType = MenuOpenType.NONE, Visible = true, Sort = 0, Status = CommonStatus.ENABLE },","EXAM_C_ABSENT_ADD"]
[10231,10229,"[0],[10200],[10229],","修改","监测管理（中心）/缺测替补管理/修改","edit","MenuType.BUTTON",null,null,null,"exam-c.absent.edit","MenuOpenType.NONE","true",0,"CommonStatus.ENABLE","            new SysMenu { Id = 10231, Pid = 10229, Pids = \"[0],[10200],[10229],\", Name = \"修改\", Code = \"edit\", MenuType = MenuType.BUTTON, Icon = \"\", Router = \"\", Component = \"\", Permission = \"exam-c.absent.edit\", OpenType = MenuOpenType.NONE, Visible = true, Sort = 0, Status = CommonStatus.ENABLE },","EXAM_C_ABSENT_EDIT"]
[10232,10229,"[0],[10200],[10229],","删除","监测管理（中心）/缺测替补管理/删除","del","MenuType.BUTTON",null,null,null,"exam-c.absent.del","MenuOpenType.NONE","true",0,"CommonStatus.ENABLE","            new SysMenu { Id = 10232, Pid = 10229, Pids = \"[0],[10200],[10229],\", Name = \"删除\", Code = \"del\", MenuType = MenuType.BUTTON, Icon = \"\", Router = \"\", Component = \"\", Permission = \"exam-c.absent.del\", OpenType = MenuOpenType.NONE, Visible = true, Sort = 0, Status = CommonStatus.ENABLE },","EXAM_C_ABSENT_DEL"]
[10233,10229,"[0],[10200],[10229],","提交","监测管理（中心）/缺测替补管理/提交","submit","MenuType.BUTTON",null,null,null,"exam-c.absent.submit","MenuOpenType.NONE","true",0,"CommonStatus.ENABLE","            new SysMenu { Id = 10233, Pid = 10229, Pids = \"[0],[10200],[10229],\", Name = \"提交\", Code = \"submit\", MenuType = MenuType.BUTTON, Icon = \"\", Router = \"\", Component = \"\", Permission = \"exam-c.absent.submit\", OpenType = MenuOpenType.NONE, Visible = true, Sort = 0, Status = CommonStatus.ENABLE },","EXAM_C_ABSENT_SUBMIT"]
[10234,10229,"[0],[10200],[10229],","审核","监测管理（中心）/缺测替补管理/审核","audit","MenuType.BUTTON",null,null,null,"exam-c.absent.audit","MenuOpenType.NONE","true",0,"CommonStatus.ENABLE","            new SysMenu { Id = 10234, Pid = 10229, Pids = \"[0],[10200],[10229],\", Name = \"审核\", Code = \"audit\", MenuType = MenuType.BUTTON, Icon = \"\", Router = \"\", Component = \"\", Permission = \"exam-c.absent.audit\", OpenType = MenuOpenType.NONE, Visible = true, Sort = 0, Status = CommonStatus.ENABLE },","EXAM_C_ABSENT_AUDIT"]
[10235,{"$f":"A$51","v":10229},{"$f":"C$51&\"[\"&B57&\"],\"","v":"[0],[10200],[10229],"},"下载",{"$f":"E$51&\"/\"&D57","v":"监测管理（中心）/缺测替补管理/下载"},"download","MenuType.BUTTON",null,null,null,{"$f":"F$22&\".\"&F$51&\".\"&F57","v":"exam-c.absent.download"},"MenuOpenType.NONE","true",0,"CommonStatus.ENABLE","            new SysMenu { Id = 10235, Pid = 10229, Pids = \"[0],[10200],[10229],\", Name = \"下载\", Code = \"download\", MenuType = MenuType.BUTTON, Icon = \"\", Router = \"\", Component = \"\", Permission = \"exam-c.absent.download\", OpenType = MenuOpenType.NONE, Visible = true, Sort = 0, Status = CommonStatus.ENABLE },",{"$f":"UPPER(SUBSTITUTE(SUBSTITUTE(K57,\"-\",\"_\"),\".\",\"_\"))","v":"EXAM_C_ABSENT_DOWNLOAD"}]
[10236,{"$f":"A$22","v":10200},{"$f":"C$22&\"[\"&B58&\"],\"","v":"[0],[10200],"},"监测结果管理",{"$f":"E$22&\"/\"&D58","v":"监测管理（中心）/监测结果管理"},"result","MenuType.MENU",null,{"$f":"I$22&\"/\"&F58","v":"/exam-c/result"},null,null,"MenuOpenType.COMPONENT","true",70,"CommonStatus.ENABLE","            new SysMenu { Id = 10236, Pid = 10200, Pids = \"[0],[10200],\", Name = \"监测结果管理\", Code = \"result\", MenuType = MenuType.MENU, Icon = \"\", Router = \"/exam-c/result\", Component = \"\", Permission = \"\", OpenType = MenuOpenType.COMPONENT, Visible = true, Sort = 70, Status = CommonStatus.ENABLE },",{"$f":"UPPER(SUBSTITUTE(SUBSTITUTE(K58,\"-\",\"_\"),\".\",\"_\"))","v":""}]
[10237,{"$f":"A$58","v":10236},{"$f":"C$58&\"[\"&B59&\"],\"","v":"[0],[10200],[10236],"},"添加",{"$f":"E$58&\"/\"&D59","v":"监测管理（中心）/监测结果管理/添加"},"add","MenuType.BUTTON",null,null,null,{"$f":"F$22&\".\"&F$58&\".\"&F59","v":"exam-c.result.add"},"MenuOpenType.NONE","true",0,"CommonStatus.ENABLE","            new SysMenu { Id = 10237, Pid = 10236, Pids = \"[0],[10200],[10236],\", Name = \"添加\", Code = \"add\", MenuType = MenuType.BUTTON, Icon = \"\", Router = \"\", Component = \"\", Permission = \"exam-c.result.add\", OpenType = MenuOpenType.NONE, Visible = true, Sort = 0, Status = CommonStatus.ENABLE },",{"$f":"UPPER(SUBSTITUTE(SUBSTITUTE(K59,\"-\",\"_\"),\".\",\"_\"))","v":"EXAM_C_RESULT_ADD"}]
[10238,{"$f":"A$58","v":10236},{"$f":"C$58&\"[\"&B60&\"],\"","v":"[0],[10200],[10236],"},"修改",{"$f":"E$58&\"/\"&D60","v":"监测管理（中心）/监测结果管理/修改"},"edit","MenuType.BUTTON",null,null,null,{"$f":"F$22&\".\"&F$58&\".\"&F60","v":"exam-c.result.edit"},"MenuOpenType.NONE","true",0,"CommonStatus.ENABLE","            new SysMenu { Id = 10238, Pid = 10236, Pids = \"[0],[10200],[10236],\", Name = \"修改\", Code = \"edit\", MenuType = MenuType.BUTTON, Icon = \"\", Router = \"\", Component = \"\", Permission = \"exam-c.result.edit\", OpenType = MenuOpenType.NONE, Visible = true, Sort = 0, Status = CommonStatus.ENABLE },",{"$f":"UPPER(SUBSTITUTE(SUBSTITUTE(K60,\"-\",\"_\"),\".\",\"_\"))","v":"EXAM_C_RESULT_EDIT"}]
[10239,{"$f":"A$58","v":10236},{"$f":"C$58&\"[\"&B61&\"],\"","v":"[0],[10200],[10236],"},"删除",{"$f":"E$58&\"/\"&D61","v":"监测管理（中心）/监测结果管理/删除"},"del","MenuType.BUTTON",null,null,null,{"$f":"F$22&\".\"&F$58&\".\"&F61","v":"exam-c.result.del"},"MenuOpenType.NONE","true",0,"CommonStatus.ENABLE","            new SysMenu { Id = 10239, Pid = 10236, Pids = \"[0],[10200],[10236],\", Name = \"删除\", Code = \"del\", MenuType = MenuType.BUTTON, Icon = \"\", Router = \"\", Component = \"\", Permission = \"exam-c.result.del\", OpenType = MenuOpenType.NONE, Visible = true, Sort = 0, Status = CommonStatus.ENABLE },",{"$f":"UPPER(SUBSTITUTE(SUBSTITUTE(K61,\"-\",\"_\"),\".\",\"_\"))","v":"EXAM_C_RESULT_DEL"}]
[10240,{"$f":"A$58","v":10236},{"$f":"C$58&\"[\"&B62&\"],\"","v":"[0],[10200],[10236],"},"发布",{"$f":"E$58&\"/\"&D62","v":"监测管理（中心）/监测结果管理/发布"},"publish","MenuType.BUTTON",null,null,null,{"$f":"F$22&\".\"&F$58&\".\"&F62","v":"exam-c.result.publish"},"MenuOpenType.NONE","true",0,"CommonStatus.ENABLE","            new SysMenu { Id = 10240, Pid = 10236, Pids = \"[0],[10200],[10236],\", Name = \"发布\", Code = \"publish\", MenuType = MenuType.BUTTON, Icon = \"\", Router = \"\", Component = \"\", Permission = \"exam-c.result.publish\", OpenType = MenuOpenType.NONE, Visible = true, Sort = 0, Status = CommonStatus.ENABLE },",{"$f":"UPPER(SUBSTITUTE(SUBSTITUTE(K62,\"-\",\"_\"),\".\",\"_\"))","v":"EXAM_C_RESULT_PUBLISH"}]
[10241,{"$f":"A$58","v":10236},{"$f":"C$58&\"[\"&B63&\"],\"","v":"[0],[10200],[10236],"},"下载",{"$f":"E$58&\"/\"&D63","v":"监测管理（中心）/监测结果管理/下载"},"download","MenuType.BUTTON",null,null,null,{"$f":"F$22&\".\"&F$58&\".\"&F63","v":"exam-c.result.download"},"MenuOpenType.NONE","true",0,"CommonStatus.ENABLE","            new SysMenu { Id = 10241, Pid = 10236, Pids = \"[0],[10200],[10236],\", Name = \"下载\", Code = \"download\", MenuType = MenuType.BUTTON, Icon = \"\", Router = \"\", Component = \"\", Permission = \"exam-c.result.download\", OpenType = MenuOpenType.NONE, Visible = true, Sort = 0, Status = CommonStatus.ENABLE },",{"$f":"UPPER(SUBSTITUTE(SUBSTITUTE(K63,\"-\",\"_\"),\".\",\"_\"))","v":"EXAM_C_RESULT_DOWNLOAD"}]
[]
[10300,0,{"$f":"\"[\"&B65&\"],\"","v":"[0],"},"监测管理（学校）",{"$f":"D65","v":"监测管理（学校）"},"exam-s","MenuType.FOLDER","box",{"$f":"\"/\"&F65","v":"/exam-s"},null,null,"MenuOpenType.NONE","true",{"$f":"A65","v":10300},"CommonStatus.ENABLE",{"$f":"\"            new SysMenu { Id = \"&A65&\", Pid = \"&B65&\", Pids = \"\"\"&C65&\"\"\", Name = \"\"\"&D65&\"\"\", Code = \"\"\"&F65&\"\"\", MenuType = \"&G65&\", Icon = \"\"\"&H65&\"\"\", Router = \"\"\"&I65&\"\"\", Component = \"\"\"&J65&\"\"\", Permission = \"\"\"&K65&\"\"\", OpenType = \"&L65&\", Visible = \"&M65&\", Sort = \"&N65&\", Status = \"&O65&\" },\"","v":"            new SysMenu { Id = 10300, Pid = 0, Pids = \"[0],\", Name = \"监测管理（学校）\", Code = \"exam-s\", MenuType = MenuType.FOLDER, Icon = \"box\", Router = \"/exam-s\", Component = \"\", Permission = \"\", OpenType = MenuOpenType.NONE, Visible = true, Sort = 10300, Status = CommonStatus.ENABLE },"},{"$f":"UPPER(SUBSTITUTE(SUBSTITUTE(K65,\"-\",\"_\"),\".\",\"_\"))","v":""}]
[10301,{"$f":"A$65","v":10300},{"$f":"C$65&\"[\"&B66&\"],\"","v":"[0],[10300],"},"监测学生上报",{"$f":"E$65&\"/\"&D66","v":"监测管理（学校）/监测学生上报"},"stu","MenuType.MENU",null,{"$f":"I$65&\"/\"&F66","v":"/exam-s/stu"},null,null,"MenuOpenType.COMPONENT","true",10,"CommonStatus.ENABLE",{"$f":"\"            new SysMenu { Id = \"&A66&\", Pid = \"&B66&\", Pids = \"\"\"&C66&\"\"\", Name = \"\"\"&D66&\"\"\", Code = \"\"\"&F66&\"\"\", MenuType = \"&G66&\", Icon = \"\"\"&H66&\"\"\", Router = \"\"\"&I66&\"\"\", Component = \"\"\"&J66&\"\"\", Permission = \"\"\"&K66&\"\"\", OpenType = \"&L66&\", Visible = \"&M66&\", Sort = \"&N66&\", Status = \"&O66&\" },\"","v":"            new SysMenu { Id = 10301, Pid = 10300, Pids = \"[0],[10300],\", Name = \"监测学生上报\", Code = \"stu\", MenuType = MenuType.MENU, Icon = \"\", Router = \"/exam-s/stu\", Component = \"\", Permission = \"\", OpenType = MenuOpenType.COMPONENT, Visible = true, Sort = 10, Status = CommonStatus.ENABLE },"},""]
[10302,{"$f":"A$66","v":10301},{"$f":"C$66&\"[\"&B67&\"],\"","v":"[0],[10300],[10301],"},"添加",{"$f":"E$66&\"/\"&D67","v":"监测管理（学校）/监测学生上报/添加"},"add","MenuType.BUTTON",null,null,null,{"$f":"F$65&\".\"&F$66&\".\"&F67","v":"exam-s.stu.add"},"MenuOpenType.NONE","true",0,"CommonStatus.ENABLE","            new SysMenu { Id = 10302, Pid = 10301, Pids = \"[0],[10300],[10301],\", Name = \"添加\", Code = \"add\", MenuType = MenuType.BUTTON, Icon = \"\", Router = \"\", Component = \"\", Permission = \"exam-s.stu.add\", OpenType = MenuOpenType.NONE, Visible = true, Sort = 0, Status = CommonStatus.ENABLE },","EXAM_S_STU_ADD"]
[10303,10301,"[0],[10300],[10301],","修改","监测管理（学校）/监测学生上报/修改","edit","MenuType.BUTTON",null,null,null,"exam-s.stu.edit","MenuOpenType.NONE","true",0,"CommonStatus.ENABLE","            new SysMenu { Id = 10303, Pid = 10301, Pids = \"[0],[10300],[10301],\", Name = \"修改\", Code = \"edit\", MenuType = MenuType.BUTTON, Icon = \"\", Router = \"\", Component = \"\", Permission = \"exam-s.stu.edit\", OpenType = MenuOpenType.NONE, Visible = true, Sort = 0, Status = CommonStatus.ENABLE },","EXAM_S_STU_EDIT"]
[10304,10301,"[0],[10300],[10301],","删除","监测管理（学校）/监测学生上报/删除","del","MenuType.BUTTON",null,null,null,"exam-s.stu.del","MenuOpenType.NONE","true",0,"CommonStatus.ENABLE","            new SysMenu { Id = 10304, Pid = 10301, Pids = \"[0],[10300],[10301],\", Name = \"删除\", Code = \"del\", MenuType = MenuType.BUTTON, Icon = \"\", Router = \"\", Component = \"\", Permission = \"exam-s.stu.del\", OpenType = MenuOpenType.NONE, Visible = true, Sort = 0, Status = CommonStatus.ENABLE },","EXAM_S_STU_DEL"]
[10305,10301,"[0],[10300],[10301],","提交","监测管理（学校）/监测学生上报/提交","submit","MenuType.BUTTON",null,null,null,"exam-s.stu.submit","MenuOpenType.NONE","true",0,"CommonStatus.ENABLE","            new SysMenu { Id = 10305, Pid = 10301, Pids = \"[0],[10300],[10301],\", Name = \"提交\", Code = \"submit\", MenuType = MenuType.BUTTON, Icon = \"\", Router = \"\", Component = \"\", Permission = \"exam-s.stu.submit\", OpenType = MenuOpenType.NONE, Visible = true, Sort = 0, Status = CommonStatus.ENABLE },","EXAM_S_STU_SUBMIT"]
[10306,{"$f":"A$66","v":10301},{"$f":"C$66&\"[\"&B71&\"],\"","v":"[0],[10300],[10301],"},"下载",{"$f":"E$66&\"/\"&D71","v":"监测管理（学校）/监测学生上报/下载"},"download","MenuType.BUTTON",null,null,null,{"$f":"F$65&\".\"&F$66&\".\"&F71","v":"exam-s.stu.download"},"MenuOpenType.NONE","true",0,"CommonStatus.ENABLE","            new SysMenu { Id = 10306, Pid = 10301, Pids = \"[0],[10300],[10301],\", Name = \"下载\", Code = \"download\", MenuType = MenuType.BUTTON, Icon = \"\", Router = \"\", Component = \"\", Permission = \"exam-s.stu.download\", OpenType = MenuOpenType.NONE, Visible = true, Sort = 0, Status = CommonStatus.ENABLE },",{"$f":"UPPER(SUBSTITUTE(SUBSTITUTE(K71,\"-\",\"_\"),\".\",\"_\"))","v":"EXAM_S_STU_DOWNLOAD"}]
[10307,{"$f":"A$65","v":10300},{"$f":"C$65&\"[\"&B72&\"],\"","v":"[0],[10300],"},"特殊学生上报",{"$f":"E$65&\"/\"&D72","v":"监测管理（学校）/特殊学生上报"},"sp-stu","MenuType.MENU",null,{"$f":"I$65&\"/\"&F72","v":"/exam-s/sp-stu"},null,null,"MenuOpenType.COMPONENT","true",20,"CommonStatus.ENABLE","            new SysMenu { Id = 10307, Pid = 10300, Pids = \"[0],[10300],\", Name = \"特殊学生上报\", Code = \"sp-stu\", MenuType = MenuType.MENU, Icon = \"\", Router = \"/exam-s/sp-stu\", Component = \"\", Permission = \"\", OpenType = MenuOpenType.COMPONENT, Visible = true, Sort = 20, Status = CommonStatus.ENABLE },",""]
[10308,{"$f":"A$72","v":10307},{"$f":"C$72&\"[\"&B73&\"],\"","v":"[0],[10300],[10307],"},"添加",{"$f":"E$72&\"/\"&D73","v":"监测管理（学校）/特殊学生上报/添加"},"add","MenuType.BUTTON",null,null,null,{"$f":"F$65&\".\"&F$72&\".\"&F73","v":"exam-s.sp-stu.add"},"MenuOpenType.NONE","true",0,"CommonStatus.ENABLE","            new SysMenu { Id = 10308, Pid = 10307, Pids = \"[0],[10300],[10307],\", Name = \"添加\", Code = \"add\", MenuType = MenuType.BUTTON, Icon = \"\", Router = \"\", Component = \"\", Permission = \"exam-s.sp-stu.add\", OpenType = MenuOpenType.NONE, Visible = true, Sort = 0, Status = CommonStatus.ENABLE },","EXAM_S_SP_STU_ADD"]
[10309,{"$f":"A$72","v":10307},{"$f":"C$72&\"[\"&B74&\"],\"","v":"[0],[10300],[10307],"},"修改",{"$f":"E$72&\"/\"&D74","v":"监测管理（学校）/特殊学生上报/修改"},"edit","MenuType.BUTTON",null,null,null,{"$f":"F$65&\".\"&F$72&\".\"&F74","v":"exam-s.sp-stu.edit"},"MenuOpenType.NONE","true",0,"CommonStatus.ENABLE","            new SysMenu { Id = 10309, Pid = 10307, Pids = \"[0],[10300],[10307],\", Name = \"修改\", Code = \"edit\", MenuType = MenuType.BUTTON, Icon = \"\", Router = \"\", Component = \"\", Permission = \"exam-s.sp-stu.edit\", OpenType = MenuOpenType.NONE, Visible = true, Sort = 0, Status = CommonStatus.ENABLE },","EXAM_S_SP_STU_EDIT"]
[10310,{"$f":"A$72","v":10307},{"$f":"C$72&\"[\"&B75&\"],\"","v":"[0],[10300],[10307],"},"删除",{"$f":"E$72&\"/\"&D75","v":"监测管理（学校）/特殊学生上报/删除"},"del","MenuType.BUTTON",null,null,null,{"$f":"F$65&\".\"&F$72&\".\"&F75","v":"exam-s.sp-stu.del"},"MenuOpenType.NONE","true",0,"CommonStatus.ENABLE","            new SysMenu { Id = 10310, Pid = 10307, Pids = \"[0],[10300],[10307],\", Name = \"删除\", Code = \"del\", MenuType = MenuType.BUTTON, Icon = \"\", Router = \"\", Component = \"\", Permission = \"exam-s.sp-stu.del\", OpenType = MenuOpenType.NONE, Visible = true, Sort = 0, Status = CommonStatus.ENABLE },","EXAM_S_SP_STU_DEL"]
[10311,{"$f":"A$72","v":10307},{"$f":"C$72&\"[\"&B76&\"],\"","v":"[0],[10300],[10307],"},"提交",{"$f":"E$72&\"/\"&D76","v":"监测管理（学校）/特殊学生上报/提交"},"submit","MenuType.BUTTON",null,null,null,{"$f":"F$65&\".\"&F$72&\".\"&F76","v":"exam-s.sp-stu.submit"},"MenuOpenType.NONE","true",0,"CommonStatus.ENABLE","            new SysMenu { Id = 10311, Pid = 10307, Pids = \"[0],[10300],[10307],\", Name = \"提交\", Code = \"submit\", MenuType = MenuType.BUTTON, Icon = \"\", Router = \"\", Component = \"\", Permission = \"exam-s.sp-stu.submit\", OpenType = MenuOpenType.NONE, Visible = true, Sort = 0, Status = CommonStatus.ENABLE },","EXAM_S_SP_STU_SUBMIT"]
[10312,{"$f":"A$72","v":10307},{"$f":"C$72&\"[\"&B77&\"],\"","v":"[0],[10300],[10307],"},"下载",{"$f":"E$72&\"/\"&D77","v":"监测管理（学校）/特殊学生上报/下载"},"download","MenuType.BUTTON",null,null,null,{"$f":"F$65&\".\"&F$72&\".\"&F77","v":"exam-s.sp-stu.download"},"MenuOpenType.NONE","true",0,"CommonStatus.ENABLE","            new SysMenu { Id = 10312, Pid = 10307, Pids = \"[0],[10300],[10307],\", Name = \"下载\", Code = \"download\", MenuType = MenuType.BUTTON, Icon = \"\", Router = \"\", Component = \"\", Permission = \"exam-s.sp-stu.download\", OpenType = MenuOpenType.NONE, Visible = true, Sort = 0, Status = CommonStatus.ENABLE },","EXAM_S_SP_STU_DOWNLOAD"]
[10313,{"$f":"A$65","v":10300},{"$f":"C$65&\"[\"&B78&\"],\"","v":"[0],[10300],"},"教师学科上报",{"$f":"E$65&\"/\"&D78","v":"监测管理（学校）/教师学科上报"},"t-course","MenuType.MENU",null,{"$f":"I$65&\"/\"&F78","v":"/exam-s/t-course"},null,null,"MenuOpenType.COMPONENT","true",30,"CommonStatus.ENABLE","            new SysMenu { Id = 10313, Pid = 10300, Pids = \"[0],[10300],\", Name = \"教师学科上报\", Code = \"t-course\", MenuType = MenuType.MENU, Icon = \"\", Router = \"/exam-s/t-course\", Component = \"\", Permission = \"\", OpenType = MenuOpenType.COMPONENT, Visible = true, Sort = 30, Status = CommonStatus.ENABLE },",""]
[10314,{"$f":"A$78","v":10313},{"$f":"C$78&\"[\"&B79&\"],\"","v":"[0],[10300],[10313],"},"添加",{"$f":"E$78&\"/\"&D79","v":"监测管理（学校）/教师学科上报/添加"},"add","MenuType.BUTTON",null,null,null,{"$f":"F$65&\".\"&F$78&\".\"&F79","v":"exam-s.t-course.add"},"MenuOpenType.NONE","true",0,"CommonStatus.ENABLE","            new SysMenu { Id = 10314, Pid = 10313, Pids = \"[0],[10300],[10313],\", Name = \"添加\", Code = \"add\", MenuType = MenuType.BUTTON, Icon = \"\", Router = \"\", Component = \"\", Permission = \"exam-s.t-course.add\", OpenType = MenuOpenType.NONE, Visible = true, Sort = 0, Status = CommonStatus.ENABLE },","EXAM_S_T_COURSE_ADD"]
[10315,{"$f":"A$78","v":10313},{"$f":"C$78&\"[\"&B80&\"],\"","v":"[0],[10300],[10313],"},"修改",{"$f":"E$78&\"/\"&D80","v":"监测管理（学校）/教师学科上报/修改"},"edit","MenuType.BUTTON",null,null,null,{"$f":"F$65&\".\"&F$78&\".\"&F80","v":"exam-s.t-course.edit"},"MenuOpenType.NONE","true",0,"CommonStatus.ENABLE","            new SysMenu { Id = 10315, Pid = 10313, Pids = \"[0],[10300],[10313],\", Name = \"修改\", Code = \"edit\", MenuType = MenuType.BUTTON, Icon = \"\", Router = \"\", Component = \"\", Permission = \"exam-s.t-course.edit\", OpenType = MenuOpenType.NONE, Visible = true, Sort = 0, Status = CommonStatus.ENABLE },","EXAM_S_T_COURSE_EDIT"]
[10316,{"$f":"A$78","v":10313},{"$f":"C$78&\"[\"&B81&\"],\"","v":"[0],[10300],[10313],"},"删除",{"$f":"E$78&\"/\"&D81","v":"监测管理（学校）/教师学科上报/删除"},"del","MenuType.BUTTON",null,null,null,{"$f":"F$65&\".\"&F$78&\".\"&F81","v":"exam-s.t-course.del"},"MenuOpenType.NONE","true",0,"CommonStatus.ENABLE","            new SysMenu { Id = 10316, Pid = 10313, Pids = \"[0],[10300],[10313],\", Name = \"删除\", Code = \"del\", MenuType = MenuType.BUTTON, Icon = \"\", Router = \"\", Component = \"\", Permission = \"exam-s.t-course.del\", OpenType = MenuOpenType.NONE, Visible = true, Sort = 0, Status = CommonStatus.ENABLE },","EXAM_S_T_COURSE_DEL"]
[10317,{"$f":"A$78","v":10313},{"$f":"C$78&\"[\"&B82&\"],\"","v":"[0],[10300],[10313],"},"提交",{"$f":"E$78&\"/\"&D82","v":"监测管理（学校）/教师学科上报/提交"},"submit","MenuType.BUTTON",null,null,null,{"$f":"F$65&\".\"&F$78&\".\"&F82","v":"exam-s.t-course.submit"},"MenuOpenType.NONE","true",0,"CommonStatus.ENABLE","            new SysMenu { Id = 10317, Pid = 10313, Pids = \"[0],[10300],[10313],\", Name = \"提交\", Code = \"submit\", MenuType = MenuType.BUTTON, Icon = \"\", Router = \"\", Component = \"\", Permission = \"exam-s.t-course.submit\", OpenType = MenuOpenType.NONE, Visible = true, Sort = 0, Status = CommonStatus.ENABLE },","EXAM_S_T_COURSE_SUBMIT"]
[10318,{"$f":"A$78","v":10313},{"$f":"C$78&\"[\"&B83&\"],\"","v":"[0],[10300],[10313],"},"下载",{"$f":"E$78&\"/\"&D83","v":"监测管理（学校）/教师学科上报/下载"},"download","MenuType.BUTTON",null,null,null,{"$f":"F$65&\".\"&F$78&\".\"&F83","v":"exam-s.t-course.download"},"MenuOpenType.NONE","true",0,"CommonStatus.ENABLE","            new SysMenu { Id = 10318, Pid = 10313, Pids = \"[0],[10300],[10313],\", Name = \"下载\", Code = \"download\", MenuType = MenuType.BUTTON, Icon = \"\", Router = \"\", Component = \"\", Permission = \"exam-s.t-course.download\", OpenType = MenuOpenType.NONE, Visible = true, Sort = 0, Status = CommonStatus.ENABLE },","EXAM_S_T_COURSE_DOWNLOAD"]
[10319,{"$f":"A$65","v":10300},{"$f":"C$65&\"[\"&B84&\"],\"","v":"[0],[10300],"},"监测抽样下载",{"$f":"E$65&\"/\"&D84","v":"监测管理（学校）/监测抽样下载"},"sample","MenuType.MENU",null,{"$f":"I$65&\"/\"&F84","v":"/exam-s/sample"},null,null,"MenuOpenType.COMPONENT","true",40,"CommonStatus.ENABLE","            new SysMenu { Id = 10319, Pid = 10300, Pids = \"[0],[10300],\", Name = \"监测抽样下载\", Code = \"sample\", MenuType = MenuType.MENU, Icon = \"\", Router = \"/exam-s/sample\", Component = \"\", Permission = \"\", OpenType = MenuOpenType.COMPONENT, Visible = true, Sort = 40, Status = CommonStatus.ENABLE },",{"$f":"UPPER(SUBSTITUTE(SUBSTITUTE(K84,\"-\",\"_\"),\".\",\"_\"))","v":""}]
[10320,{"$f":"A$84","v":10319},{"$f":"C$84&\"[\"&B85&\"],\"","v":"[0],[10300],[10319],"},"下载",{"$f":"E$84&\"/\"&D85","v":"监测管理（学校）/监测抽样下载/下载"},"download","MenuType.BUTTON",null,null,null,{"$f":"F$65&\".\"&F$84&\".\"&F85","v":"exam-s.sample.download"},"MenuOpenType.NONE","true",0,"CommonStatus.ENABLE","            new SysMenu { Id = 10320, Pid = 10319, Pids = \"[0],[10300],[10319],\", Name = \"下载\", Code = \"download\", MenuType = MenuType.BUTTON, Icon = \"\", Router = \"\", Component = \"\", Permission = \"exam-s.sample.download\", OpenType = MenuOpenType.NONE, Visible = true, Sort = 0, Status = CommonStatus.ENABLE },",{"$f":"UPPER(SUBSTITUTE(SUBSTITUTE(K85,\"-\",\"_\"),\".\",\"_\"))","v":"EXAM_S_SAMPLE_DOWNLOAD"}]
[10321,{"$f":"A$65","v":10300},{"$f":"C$65&\"[\"&B86&\"],\"","v":"[0],[10300],"},"缺测替补上报",{"$f":"E$65&\"/\"&D86","v":"监测管理（学校）/缺测替补上报"},"absent","MenuType.MENU",null,{"$f":"I$65&\"/\"&F86","v":"/exam-s/absent"},null,null,"MenuOpenType.COMPONENT","true",50,"CommonStatus.ENABLE","            new SysMenu { Id = 10321, Pid = 10300, Pids = \"[0],[10300],\", Name = \"缺测替补上报\", Code = \"absent\", MenuType = MenuType.MENU, Icon = \"\", Router = \"/exam-s/absent\", Component = \"\", Permission = \"\", OpenType = MenuOpenType.COMPONENT, Visible = true, Sort = 50, Status = CommonStatus.ENABLE },",{"$f":"UPPER(SUBSTITUTE(SUBSTITUTE(K86,\"-\",\"_\"),\".\",\"_\"))","v":""}]
[10322,{"$f":"A$86","v":10321},{"$f":"C$86&\"[\"&B87&\"],\"","v":"[0],[10300],[10321],"},"添加",{"$f":"E$86&\"/\"&D87","v":"监测管理（学校）/缺测替补上报/添加"},"add","MenuType.BUTTON",null,null,null,{"$f":"F$65&\".\"&F$86&\".\"&F87","v":"exam-s.absent.add"},"MenuOpenType.NONE","true",0,"CommonStatus.ENABLE","            new SysMenu { Id = 10322, Pid = 10321, Pids = \"[0],[10300],[10321],\", Name = \"添加\", Code = \"add\", MenuType = MenuType.BUTTON, Icon = \"\", Router = \"\", Component = \"\", Permission = \"exam-s.absent.add\", OpenType = MenuOpenType.NONE, Visible = true, Sort = 0, Status = CommonStatus.ENABLE },",{"$f":"UPPER(SUBSTITUTE(SUBSTITUTE(K87,\"-\",\"_\"),\".\",\"_\"))","v":"EXAM_S_ABSENT_ADD"}]
[10323,{"$f":"A$86","v":10321},{"$f":"C$86&\"[\"&B88&\"],\"","v":"[0],[10300],[10321],"},"修改",{"$f":"E$86&\"/\"&D88","v":"监测管理（学校）/缺测替补上报/修改"},"edit","MenuType.BUTTON",null,null,null,{"$f":"F$65&\".\"&F$86&\".\"&F88","v":"exam-s.absent.edit"},"MenuOpenType.NONE","true",0,"CommonStatus.ENABLE","            new SysMenu { Id = 10323, Pid = 10321, Pids = \"[0],[10300],[10321],\", Name = \"修改\", Code = \"edit\", MenuType = MenuType.BUTTON, Icon = \"\", Router = \"\", Component = \"\", Permission = \"exam-s.absent.edit\", OpenType = MenuOpenType.NONE, Visible = true, Sort = 0, Status = CommonStatus.ENABLE },","EXAM_S_ABSENT_EDIT"]
[10324,{"$f":"A$86","v":10321},{"$f":"C$86&\"[\"&B89&\"],\"","v":"[0],[10300],[10321],"},"删除",{"$f":"E$86&\"/\"&D89","v":"监测管理（学校）/缺测替补上报/删除"},"del","MenuType.BUTTON",null,null,null,{"$f":"F$65&\".\"&F$86&\".\"&F89","v":"exam-s.absent.del"},"MenuOpenType.NONE","true",0,"CommonStatus.ENABLE","            new SysMenu { Id = 10324, Pid = 10321, Pids = \"[0],[10300],[10321],\", Name = \"删除\", Code = \"del\", MenuType = MenuType.BUTTON, Icon = \"\", Router = \"\", Component = \"\", Permission = \"exam-s.absent.del\", OpenType = MenuOpenType.NONE, Visible = true, Sort = 0, Status = CommonStatus.ENABLE },","EXAM_S_ABSENT_DEL"]
[10325,{"$f":"A$86","v":10321},{"$f":"C$86&\"[\"&B90&\"],\"","v":"[0],[10300],[10321],"},"提交",{"$f":"E$86&\"/\"&D90","v":"监测管理（学校）/缺测替补上报/提交"},"submit","MenuType.BUTTON",null,null,null,{"$f":"F$65&\".\"&F$86&\".\"&F90","v":"exam-s.absent.submit"},"MenuOpenType.NONE","true",0,"CommonStatus.ENABLE","            new SysMenu { Id = 10325, Pid = 10321, Pids = \"[0],[10300],[10321],\", Name = \"提交\", Code = \"submit\", MenuType = MenuType.BUTTON, Icon = \"\", Router = \"\", Component = \"\", Permission = \"exam-s.absent.submit\", OpenType = MenuOpenType.NONE, Visible = true, Sort = 0, Status = CommonStatus.ENABLE },","EXAM_S_ABSENT_SUBMIT"]
[10326,{"$f":"A$86","v":10321},{"$f":"C$86&\"[\"&B91&\"],\"","v":"[0],[10300],[10321],"},"下载",{"$f":"E$86&\"/\"&D91","v":"监测管理（学校）/缺测替补上报/下载"},"download","MenuType.BUTTON",null,null,null,{"$f":"F$65&\".\"&F$86&\".\"&F91","v":"exam-s.absent.download"},"MenuOpenType.NONE","true",0,"CommonStatus.ENABLE","            new SysMenu { Id = 10326, Pid = 10321, Pids = \"[0],[10300],[10321],\", Name = \"下载\", Code = \"download\", MenuType = MenuType.BUTTON, Icon = \"\", Router = \"\", Component = \"\", Permission = \"exam-s.absent.download\", OpenType = MenuOpenType.NONE, Visible = true, Sort = 0, Status = CommonStatus.ENABLE },","EXAM_S_ABSENT_DOWNLOAD"]
[10327,{"$f":"A$65","v":10300},{"$f":"C$65&\"[\"&B92&\"],\"","v":"[0],[10300],"},"校测数据上报",{"$f":"E$65&\"/\"&D92","v":"监测管理（学校）/校测数据上报"},"self-exam","MenuType.MENU",null,{"$f":"I$65&\"/\"&F92","v":"/exam-s/self-exam"},null,null,"MenuOpenType.COMPONENT","true",60,"CommonStatus.ENABLE","            new SysMenu { Id = 10327, Pid = 10300, Pids = \"[0],[10300],\", Name = \"校测数据上报\", Code = \"self-exam\", MenuType = MenuType.MENU, Icon = \"\", Router = \"/exam-s/self-exam\", Component = \"\", Permission = \"\", OpenType = MenuOpenType.COMPONENT, Visible = true, Sort = 60, Status = CommonStatus.ENABLE },",""]
[10328,{"$f":"A$92","v":10327},{"$f":"C$92&\"[\"&B93&\"],\"","v":"[0],[10300],[10327],"},"添加",{"$f":"E$92&\"/\"&D93","v":"监测管理（学校）/校测数据上报/添加"},"add","MenuType.BUTTON",null,null,null,{"$f":"F$65&\".\"&F$92&\".\"&F93","v":"exam-s.self-exam.add"},"MenuOpenType.NONE","true",0,"CommonStatus.ENABLE","            new SysMenu { Id = 10328, Pid = 10327, Pids = \"[0],[10300],[10327],\", Name = \"添加\", Code = \"add\", MenuType = MenuType.BUTTON, Icon = \"\", Router = \"\", Component = \"\", Permission = \"exam-s.self-exam.add\", OpenType = MenuOpenType.NONE, Visible = true, Sort = 0, Status = CommonStatus.ENABLE },","EXAM_S_SELF_EXAM_ADD"]
[10329,{"$f":"A$92","v":10327},{"$f":"C$92&\"[\"&B94&\"],\"","v":"[0],[10300],[10327],"},"修改",{"$f":"E$92&\"/\"&D94","v":"监测管理（学校）/校测数据上报/修改"},"edit","MenuType.BUTTON",null,null,null,{"$f":"F$65&\".\"&F$92&\".\"&F94","v":"exam-s.self-exam.edit"},"MenuOpenType.NONE","true",0,"CommonStatus.ENABLE","            new SysMenu { Id = 10329, Pid = 10327, Pids = \"[0],[10300],[10327],\", Name = \"修改\", Code = \"edit\", MenuType = MenuType.BUTTON, Icon = \"\", Router = \"\", Component = \"\", Permission = \"exam-s.self-exam.edit\", OpenType = MenuOpenType.NONE, Visible = true, Sort = 0, Status = CommonStatus.ENABLE },","EXAM_S_SELF_EXAM_EDIT"]
[10330,{"$f":"A$92","v":10327},{"$f":"C$92&\"[\"&B95&\"],\"","v":"[0],[10300],[10327],"},"删除",{"$f":"E$92&\"/\"&D95","v":"监测管理（学校）/校测数据上报/删除"},"del","MenuType.BUTTON",null,null,null,{"$f":"F$65&\".\"&F$92&\".\"&F95","v":"exam-s.self-exam.del"},"MenuOpenType.NONE","true",0,"CommonStatus.ENABLE","            new SysMenu { Id = 10330, Pid = 10327, Pids = \"[0],[10300],[10327],\", Name = \"删除\", Code = \"del\", MenuType = MenuType.BUTTON, Icon = \"\", Router = \"\", Component = \"\", Permission = \"exam-s.self-exam.del\", OpenType = MenuOpenType.NONE, Visible = true, Sort = 0, Status = CommonStatus.ENABLE },","EXAM_S_SELF_EXAM_DEL"]
[10331,{"$f":"A$92","v":10327},{"$f":"C$92&\"[\"&B96&\"],\"","v":"[0],[10300],[10327],"},"提交",{"$f":"E$92&\"/\"&D96","v":"监测管理（学校）/校测数据上报/提交"},"submit","MenuType.BUTTON",null,null,null,{"$f":"F$65&\".\"&F$92&\".\"&F96","v":"exam-s.self-exam.submit"},"MenuOpenType.NONE","true",0,"CommonStatus.ENABLE","            new SysMenu { Id = 10331, Pid = 10327, Pids = \"[0],[10300],[10327],\", Name = \"提交\", Code = \"submit\", MenuType = MenuType.BUTTON, Icon = \"\", Router = \"\", Component = \"\", Permission = \"exam-s.self-exam.submit\", OpenType = MenuOpenType.NONE, Visible = true, Sort = 0, Status = CommonStatus.ENABLE },","EXAM_S_SELF_EXAM_SUBMIT"]
[10332,{"$f":"A$92","v":10327},{"$f":"C$92&\"[\"&B97&\"],\"","v":"[0],[10300],[10327],"},"下载",{"$f":"E$92&\"/\"&D97","v":"监测管理（学校）/校测数据上报/下载"},"download","MenuType.BUTTON",null,null,null,{"$f":"F$65&\".\"&F$92&\".\"&F97","v":"exam-s.self-exam.download"},"MenuOpenType.NONE","true",0,"CommonStatus.ENABLE","            new SysMenu { Id = 10332, Pid = 10327, Pids = \"[0],[10300],[10327],\", Name = \"下载\", Code = \"download\", MenuType = MenuType.BUTTON, Icon = \"\", Router = \"\", Component = \"\", Permission = \"exam-s.self-exam.download\", OpenType = MenuOpenType.NONE, Visible = true, Sort = 0, Status = CommonStatus.ENABLE },","EXAM_S_SELF_EXAM_DOWNLOAD"]
[10333,{"$f":"A$65","v":10300},{"$f":"C$65&\"[\"&B98&\"],\"","v":"[0],[10300],"},"监测结果下载",{"$f":"E$65&\"/\"&D98","v":"监测管理（学校）/监测结果下载"},"result","MenuType.MENU",null,{"$f":"I$65&\"/\"&F98","v":"/exam-s/result"},null,null,"MenuOpenType.COMPONENT","true",70,"CommonStatus.ENABLE","            new SysMenu { Id = 10333, Pid = 10300, Pids = \"[0],[10300],\", Name = \"监测结果下载\", Code = \"result\", MenuType = MenuType.MENU, Icon = \"\", Router = \"/exam-s/result\", Component = \"\", Permission = \"\", OpenType = MenuOpenType.COMPONENT, Visible = true, Sort = 70, Status = CommonStatus.ENABLE },",""]
[10334,{"$f":"A$98","v":10333},{"$f":"C$98&\"[\"&B99&\"],\"","v":"[0],[10300],[10333],"},"下载",{"$f":"E$98&\"/\"&D99","v":"监测管理（学校）/监测结果下载/下载"},"download","MenuType.BUTTON",null,null,null,{"$f":"F$65&\".\"&F$98&\".\"&F99","v":"exam-s.result.download"},"MenuOpenType.NONE","true",0,"CommonStatus.ENABLE","            new SysMenu { Id = 10334, Pid = 10333, Pids = \"[0],[10300],[10333],\", Name = \"下载\", Code = \"download\", MenuType = MenuType.BUTTON, Icon = \"\", Router = \"\", Component = \"\", Permission = \"exam-s.result.download\", OpenType = MenuOpenType.NONE, Visible = true, Sort = 0, Status = CommonStatus.ENABLE },","EXAM_S_RESULT_DOWNLOAD"]
[]
[18000,0,{"$f":"\"[\"&B101&\"],\"","v":"[0],"},"基础数据",{"$f":"D101","v":"基础数据"},"bd","MenuType.FOLDER","form",{"$f":"\"/\"&F101","v":"/bd"},null,null,"MenuOpenType.NONE","true",{"$f":"A101","v":18000},"CommonStatus.ENABLE",{"$f":"\"            new SysMenu { Id = \"&A101&\", Pid = \"&B101&\", Pids = \"\"\"&C101&\"\"\", Name = \"\"\"&D101&\"\"\", Code = \"\"\"&F101&\"\"\", MenuType = \"&G101&\", Icon = \"\"\"&H101&\"\"\", Router = \"\"\"&I101&\"\"\", Component = \"\"\"&J101&\"\"\", Permission = \"\"\"&K101&\"\"\", OpenType = \"&L101&\", Visible = \"&M101&\", Sort = \"&N101&\", Status = \"&O101&\" },\"","v":"            new SysMenu { Id = 18000, Pid = 0, Pids = \"[0],\", Name = \"基础数据\", Code = \"bd\", MenuType = MenuType.FOLDER, Icon = \"form\", Router = \"/bd\", Component = \"\", Permission = \"\", OpenType = MenuOpenType.NONE, Visible = true, Sort = 18000, Status = CommonStatus.ENABLE },"},{"$f":"UPPER(SUBSTITUTE(SUBSTITUTE(K101,\"-\",\"_\"),\".\",\"_\"))","v":""}]
[18001,{"$f":"A$101","v":18000},{"$f":"C$101&\"[\"&B102&\"],\"","v":"[0],[18000],"},"年级",{"$f":"E$101&\"/\"&D102","v":"基础数据/年级"},"grade","MenuType.MENU",null,{"$f":"I$101&\"/\"&F102","v":"/bd/grade"},null,null,"MenuOpenType.COMPONENT","true",10,"CommonStatus.ENABLE",{"$f":"\"            new SysMenu { Id = \"&A102&\", Pid = \"&B102&\", Pids = \"\"\"&C102&\"\"\", Name = \"\"\"&D102&\"\"\", Code = \"\"\"&F102&\"\"\", MenuType = \"&G102&\", Icon = \"\"\"&H102&\"\"\", Router = \"\"\"&I102&\"\"\", Component = \"\"\"&J102&\"\"\", Permission = \"\"\"&K102&\"\"\", OpenType = \"&L102&\", Visible = \"&M102&\", Sort = \"&N102&\", Status = \"&O102&\" },\"","v":"            new SysMenu { Id = 18001, Pid = 18000, Pids = \"[0],[18000],\", Name = \"年级\", Code = \"grade\", MenuType = MenuType.MENU, Icon = \"\", Router = \"/bd/grade\", Component = \"\", Permission = \"\", OpenType = MenuOpenType.COMPONENT, Visible = true, Sort = 10, Status = CommonStatus.ENABLE },"},""]
[18002,{"$f":"A$102","v":18001},{"$f":"C$102&\"[\"&B103&\"],\"","v":"[0],[18000],[18001],"},"添加",{"$f":"E$102&\"/\"&D103","v":"基础数据/年级/添加"},"add","MenuType.BUTTON",null,null,null,{"$f":"F$101&\".\"&F$102&\".\"&F103","v":"bd.grade.add"},"MenuOpenType.NONE","true",0,"CommonStatus.ENABLE","            new SysMenu { Id = 18002, Pid = 18001, Pids = \"[0],[18000],[18001],\", Name = \"添加\", Code = \"add\", MenuType = MenuType.BUTTON, Icon = \"\", Router = \"\", Component = \"\", Permission = \"bd.grade.add\", OpenType = MenuOpenType.NONE, Visible = true, Sort = 0, Status = CommonStatus.ENABLE },","BD_GRADE_ADD"]
[18003,18001,"[0],[18000],[18001],","修改","基础数据/年级/修改","edit","MenuType.BUTTON",null,null,null,"bd.grade.edit","MenuOpenType.NONE","true",0,"CommonStatus.ENABLE","            new SysMenu { Id = 18003, Pid = 18001, Pids = \"[0],[18000],[18001],\", Name = \"修改\", Code = \"edit\", MenuType = MenuType.BUTTON, Icon = \"\", Router = \"\", Component = \"\", Permission = \"bd.grade.edit\", OpenType = MenuOpenType.NONE, Visible = true, Sort = 0, Status = CommonStatus.ENABLE },","BD_GRADE_EDIT"]
[18004,18001,"[0],[18000],[18001],","删除","基础数据/年级/删除","del","MenuType.BUTTON",null,null,null,"bd.grade.del","MenuOpenType.NONE","true",0,"CommonStatus.ENABLE","            new SysMenu { Id = 18004, Pid = 18001, Pids = \"[0],[18000],[18001],\", Name = \"删除\", Code = \"del\", MenuType = MenuType.BUTTON, Icon = \"\", Router = \"\", Component = \"\", Permission = \"bd.grade.del\", OpenType = MenuOpenType.NONE, Visible = true, Sort = 0, Status = CommonStatus.ENABLE },","BD_GRADE_DEL"]
[18005,{"$f":"A$101","v":18000},{"$f":"C$101&\"[\"&B106&\"],\"","v":"[0],[18000],"},"学科",{"$f":"E$101&\"/\"&D106","v":"基础数据/学科"},"course","MenuType.MENU",null,{"$f":"I$101&\"/\"&F106","v":"/bd/course"},null,null,"MenuOpenType.COMPONENT","true",20,"CommonStatus.ENABLE","            new SysMenu { Id = 18005, Pid = 18000, Pids = \"[0],[18000],\", Name = \"学科\", Code = \"course\", MenuType = MenuType.MENU, Icon = \"\", Router = \"/bd/course\", Component = \"\", Permission = \"\", OpenType = MenuOpenType.COMPONENT, Visible = true, Sort = 20, Status = CommonStatus.ENABLE },",""]
[18006,{"$f":"A$106","v":18005},{"$f":"C$106&\"[\"&B107&\"],\"","v":"[0],[18000],[18005],"},"添加",{"$f":"E$106&\"/\"&D107","v":"基础数据/学科/添加"},"add","MenuType.BUTTON",null,null,null,{"$f":"F$101&\".\"&F$106&\".\"&F107","v":"bd.course.add"},"MenuOpenType.NONE","true",0,"CommonStatus.ENABLE","            new SysMenu { Id = 18006, Pid = 18005, Pids = \"[0],[18000],[18005],\", Name = \"添加\", Code = \"add\", MenuType = MenuType.BUTTON, Icon = \"\", Router = \"\", Component = \"\", Permission = \"bd.course.add\", OpenType = MenuOpenType.NONE, Visible = true, Sort = 0, Status = CommonStatus.ENABLE },","BD_COURSE_ADD"]
[18007,{"$f":"A$106","v":18005},{"$f":"C$106&\"[\"&B108&\"],\"","v":"[0],[18000],[18005],"},"修改",{"$f":"E$106&\"/\"&D108","v":"基础数据/学科/修改"},"edit","MenuType.BUTTON",null,null,null,{"$f":"F$101&\".\"&F$106&\".\"&F108","v":"bd.course.edit"},"MenuOpenType.NONE","true",0,"CommonStatus.ENABLE","            new SysMenu { Id = 18007, Pid = 18005, Pids = \"[0],[18000],[18005],\", Name = \"修改\", Code = \"edit\", MenuType = MenuType.BUTTON, Icon = \"\", Router = \"\", Component = \"\", Permission = \"bd.course.edit\", OpenType = MenuOpenType.NONE, Visible = true, Sort = 0, Status = CommonStatus.ENABLE },","BD_COURSE_EDIT"]
[18008,{"$f":"A$106","v":18005},{"$f":"C$106&\"[\"&B109&\"],\"","v":"[0],[18000],[18005],"},"删除",{"$f":"E$106&\"/\"&D109","v":"基础数据/学科/删除"},"del","MenuType.BUTTON",null,null,null,{"$f":"F$101&\".\"&F$106&\".\"&F109","v":"bd.course.del"},"MenuOpenType.NONE","true",0,"CommonStatus.ENABLE","            new SysMenu { Id = 18008, Pid = 18005, Pids = \"[0],[18000],[18005],\", Name = \"删除\", Code = \"del\", MenuType = MenuType.BUTTON, Icon = \"\", Router = \"\", Component = \"\", Permission = \"bd.course.del\", OpenType = MenuOpenType.NONE, Visible = true, Sort = 0, Status = CommonStatus.ENABLE },","BD_COURSE_DEL"]
[18009,{"$f":"A$101","v":18000},{"$f":"C$101&\"[\"&B110&\"],\"","v":"[0],[18000],"},"高中选科组合",{"$f":"E$101&\"/\"&D110","v":"基础数据/高中选科组合"},"course-comb","MenuType.MENU",null,{"$f":"I$101&\"/\"&F110","v":"/bd/course-comb"},null,null,"MenuOpenType.COMPONENT","true",30,"CommonStatus.ENABLE","            new SysMenu { Id = 18009, Pid = 18000, Pids = \"[0],[18000],\", Name = \"高中选科组合\", Code = \"course-comb\", MenuType = MenuType.MENU, Icon = \"\", Router = \"/bd/course-comb\", Component = \"\", Permission = \"\", OpenType = MenuOpenType.COMPONENT, Visible = true, Sort = 30, Status = CommonStatus.ENABLE },",""]
[18010,{"$f":"A$110","v":18009},{"$f":"C$110&\"[\"&B111&\"],\"","v":"[0],[18000],[18009],"},"添加",{"$f":"E$110&\"/\"&D111","v":"基础数据/高中选科组合/添加"},"add","MenuType.BUTTON",null,null,null,{"$f":"F$101&\".\"&F$110&\".\"&F111","v":"bd.course-comb.add"},"MenuOpenType.NONE","true",0,"CommonStatus.ENABLE","            new SysMenu { Id = 18010, Pid = 18009, Pids = \"[0],[18000],[18009],\", Name = \"添加\", Code = \"add\", MenuType = MenuType.BUTTON, Icon = \"\", Router = \"\", Component = \"\", Permission = \"bd.course-comb.add\", OpenType = MenuOpenType.NONE, Visible = true, Sort = 0, Status = CommonStatus.ENABLE },","BD_COURSE_COMB_ADD"]
[18011,{"$f":"A$110","v":18009},{"$f":"C$110&\"[\"&B112&\"],\"","v":"[0],[18000],[18009],"},"修改",{"$f":"E$110&\"/\"&D112","v":"基础数据/高中选科组合/修改"},"edit","MenuType.BUTTON",null,null,null,{"$f":"F$101&\".\"&F$110&\".\"&F112","v":"bd.course-comb.edit"},"MenuOpenType.NONE","true",0,"CommonStatus.ENABLE","            new SysMenu { Id = 18011, Pid = 18009, Pids = \"[0],[18000],[18009],\", Name = \"修改\", Code = \"edit\", MenuType = MenuType.BUTTON, Icon = \"\", Router = \"\", Component = \"\", Permission = \"bd.course-comb.edit\", OpenType = MenuOpenType.NONE, Visible = true, Sort = 0, Status = CommonStatus.ENABLE },","BD_COURSE_COMB_EDIT"]
[18012,{"$f":"A$110","v":18009},{"$f":"C$110&\"[\"&B113&\"],\"","v":"[0],[18000],[18009],"},"删除",{"$f":"E$110&\"/\"&D113","v":"基础数据/高中选科组合/删除"},"del","MenuType.BUTTON",null,null,null,{"$f":"F$101&\".\"&F$110&\".\"&F113","v":"bd.course-comb.del"},"MenuOpenType.NONE","true",0,"CommonStatus.ENABLE","            new SysMenu { Id = 18012, Pid = 18009, Pids = \"[0],[18000],[18009],\", Name = \"删除\", Code = \"del\", MenuType = MenuType.BUTTON, Icon = \"\", Router = \"\", Component = \"\", Permission = \"bd.course-comb.del\", OpenType = MenuOpenType.NONE, Visible = true, Sort = 0, Status = CommonStatus.ENABLE },","BD_COURSE_COMB_DEL"]
[18013,{"$f":"A$101","v":18000},{"$f":"C$101&\"[\"&B114&\"],\"","v":"[0],[18000],"},"学期",{"$f":"E$101&\"/\"&D114","v":"基础数据/学期"},"semester","MenuType.MENU",null,{"$f":"I$101&\"/\"&F114","v":"/bd/semester"},null,null,"MenuOpenType.COMPONENT","true",40,"CommonStatus.ENABLE","            new SysMenu { Id = 18013, Pid = 18000, Pids = \"[0],[18000],\", Name = \"学期\", Code = \"semester\", MenuType = MenuType.MENU, Icon = \"\", Router = \"/bd/semester\", Component = \"\", Permission = \"\", OpenType = MenuOpenType.COMPONENT, Visible = true, Sort = 40, Status = CommonStatus.ENABLE },",{"$f":"UPPER(SUBSTITUTE(SUBSTITUTE(K114,\"-\",\"_\"),\".\",\"_\"))","v":""}]
[18014,{"$f":"A$114","v":18013},{"$f":"C$114&\"[\"&B115&\"],\"","v":"[0],[18000],[18013],"},"添加",{"$f":"E$114&\"/\"&D115","v":"基础数据/学期/添加"},"add","MenuType.BUTTON",null,null,null,{"$f":"F$101&\".\"&F$114&\".\"&F115","v":"bd.semester.add"},"MenuOpenType.NONE","true",0,"CommonStatus.ENABLE","            new SysMenu { Id = 18014, Pid = 18013, Pids = \"[0],[18000],[18013],\", Name = \"添加\", Code = \"add\", MenuType = MenuType.BUTTON, Icon = \"\", Router = \"\", Component = \"\", Permission = \"bd.semester.add\", OpenType = MenuOpenType.NONE, Visible = true, Sort = 0, Status = CommonStatus.ENABLE },","BD_SEMESTER_ADD"]
[18015,{"$f":"A$114","v":18013},{"$f":"C$114&\"[\"&B116&\"],\"","v":"[0],[18000],[18013],"},"修改",{"$f":"E$114&\"/\"&D116","v":"基础数据/学期/修改"},"edit","MenuType.BUTTON",null,null,null,{"$f":"F$101&\".\"&F$114&\".\"&F116","v":"bd.semester.edit"},"MenuOpenType.NONE","true",0,"CommonStatus.ENABLE","            new SysMenu { Id = 18015, Pid = 18013, Pids = \"[0],[18000],[18013],\", Name = \"修改\", Code = \"edit\", MenuType = MenuType.BUTTON, Icon = \"\", Router = \"\", Component = \"\", Permission = \"bd.semester.edit\", OpenType = MenuOpenType.NONE, Visible = true, Sort = 0, Status = CommonStatus.ENABLE },","BD_SEMESTER_EDIT"]
[18016,{"$f":"A$114","v":18013},{"$f":"C$114&\"[\"&B117&\"],\"","v":"[0],[18000],[18013],"},"删除",{"$f":"E$114&\"/\"&D117","v":"基础数据/学期/删除"},"del","MenuType.BUTTON",null,null,null,{"$f":"F$101&\".\"&F$114&\".\"&F117","v":"bd.semester.del"},"MenuOpenType.NONE","true",0,"CommonStatus.ENABLE","            new SysMenu { Id = 18016, Pid = 18013, Pids = \"[0],[18000],[18013],\", Name = \"删除\", Code = \"del\", MenuType = MenuType.BUTTON, Icon = \"\", Router = \"\", Component = \"\", Permission = \"bd.semester.del\", OpenType = MenuOpenType.NONE, Visible = true, Sort = 0, Status = CommonStatus.ENABLE },","BD_SEMESTER_DEL"]
[18017,{"$f":"A$101","v":18000},{"$f":"C$101&\"[\"&B118&\"],\"","v":"[0],[18000],"},"基础字典",{"$f":"E$101&\"/\"&D118","v":"基础数据/基础字典"},"dict","MenuType.MENU",null,{"$f":"I$101&\"/\"&F118","v":"/bd/dict"},null,null,"MenuOpenType.COMPONENT","true",70,"CommonStatus.ENABLE","            new SysMenu { Id = 18017, Pid = 18000, Pids = \"[0],[18000],\", Name = \"基础字典\", Code = \"dict\", MenuType = MenuType.MENU, Icon = \"\", Router = \"/bd/dict\", Component = \"\", Permission = \"\", OpenType = MenuOpenType.COMPONENT, Visible = true, Sort = 70, Status = CommonStatus.ENABLE },",""]
[]
[19000,0,{"$f":"\"[\"&B120&\"],\"","v":"[0],"},"系统管理",{"$f":"D120","v":"系统管理"},"sys","MenuType.FOLDER","system",{"$f":"\"/\"&F120","v":"/sys"},null,null,"MenuOpenType.NONE","true",{"$f":"A120","v":19000},"CommonStatus.ENABLE",{"$f":"\"            new SysMenu { Id = \"&A120&\", Pid = \"&B120&\", Pids = \"\"\"&C120&\"\"\", Name = \"\"\"&D120&\"\"\", Code = \"\"\"&F120&\"\"\", MenuType = \"&G120&\", Icon = \"\"\"&H120&\"\"\", Router = \"\"\"&I120&\"\"\", Component = \"\"\"&J120&\"\"\", Permission = \"\"\"&K120&\"\"\", OpenType = \"&L120&\", Visible = \"&M120&\", Sort = \"&N120&\", Status = \"&O120&\" },\"","v":"            new SysMenu { Id = 19000, Pid = 0, Pids = \"[0],\", Name = \"系统管理\", Code = \"sys\", MenuType = MenuType.FOLDER, Icon = \"system\", Router = \"/sys\", Component = \"\", Permission = \"\", OpenType = MenuOpenType.NONE, Visible = true, Sort = 19000, Status = CommonStatus.ENABLE },"},{"$f":"UPPER(SUBSTITUTE(SUBSTITUTE(K120,\"-\",\"_\"),\".\",\"_\"))","v":""}]
[19001,{"$f":"A$120","v":19000},{"$f":"C$120&\"[\"&B121&\"],\"","v":"[0],[19000],"},"组织机构",{"$f":"E$120&\"/\"&D121","v":"系统管理/组织机构"},"org","MenuType.MENU",null,{"$f":"I$120&\"/\"&F121","v":"/sys/org"},null,null,"MenuOpenType.COMPONENT","true",10,"CommonStatus.ENABLE",{"$f":"\"            new SysMenu { Id = \"&A121&\", Pid = \"&B121&\", Pids = \"\"\"&C121&\"\"\", Name = \"\"\"&D121&\"\"\", Code = \"\"\"&F121&\"\"\", MenuType = \"&G121&\", Icon = \"\"\"&H121&\"\"\", Router = \"\"\"&I121&\"\"\", Component = \"\"\"&J121&\"\"\", Permission = \"\"\"&K121&\"\"\", OpenType = \"&L121&\", Visible = \"&M121&\", Sort = \"&N121&\", Status = \"&O121&\" },\"","v":"            new SysMenu { Id = 19001, Pid = 19000, Pids = \"[0],[19000],\", Name = \"组织机构\", Code = \"org\", MenuType = MenuType.MENU, Icon = \"\", Router = \"/sys/org\", Component = \"\", Permission = \"\", OpenType = MenuOpenType.COMPONENT, Visible = true, Sort = 10, Status = CommonStatus.ENABLE },"},""]
[19002,{"$f":"A$121","v":19001},{"$f":"C$121&\"[\"&B122&\"],\"","v":"[0],[19000],[19001],"},"添加",{"$f":"E$121&\"/\"&D122","v":"系统管理/组织机构/添加"},"add","MenuType.BUTTON",null,null,null,{"$f":"F$120&\".\"&F$121&\".\"&F122","v":"sys.org.add"},"MenuOpenType.NONE","true",0,"CommonStatus.ENABLE","            new SysMenu { Id = 19002, Pid = 19001, Pids = \"[0],[19000],[19001],\", Name = \"添加\", Code = \"add\", MenuType = MenuType.BUTTON, Icon = \"\", Router = \"\", Component = \"\", Permission = \"sys.org.add\", OpenType = MenuOpenType.NONE, Visible = true, Sort = 0, Status = CommonStatus.ENABLE },","SYS_ORG_ADD"]
[19003,{"$f":"A$121","v":19001},{"$f":"C$121&\"[\"&B123&\"],\"","v":"[0],[19000],[19001],"},"修改",{"$f":"E$121&\"/\"&D123","v":"系统管理/组织机构/修改"},"edit","MenuType.BUTTON",null,null,null,{"$f":"F$120&\".\"&F$121&\".\"&F123","v":"sys.org.edit"},"MenuOpenType.NONE","true",0,"CommonStatus.ENABLE","            new SysMenu { Id = 19003, Pid = 19001, Pids = \"[0],[19000],[19001],\", Name = \"修改\", Code = \"edit\", MenuType = MenuType.BUTTON, Icon = \"\", Router = \"\", Component = \"\", Permission = \"sys.org.edit\", OpenType = MenuOpenType.NONE, Visible = true, Sort = 0, Status = CommonStatus.ENABLE },","SYS_ORG_EDIT"]
[19004,{"$f":"A$121","v":19001},{"$f":"C$121&\"[\"&B124&\"],\"","v":"[0],[19000],[19001],"},"删除",{"$f":"E$121&\"/\"&D124","v":"系统管理/组织机构/删除"},"del","MenuType.BUTTON",null,null,null,{"$f":"F$120&\".\"&F$121&\".\"&F124","v":"sys.org.del"},"MenuOpenType.NONE","true",0,"CommonStatus.ENABLE","            new SysMenu { Id = 19004, Pid = 19001, Pids = \"[0],[19000],[19001],\", Name = \"删除\", Code = \"del\", MenuType = MenuType.BUTTON, Icon = \"\", Router = \"\", Component = \"\", Permission = \"sys.org.del\", OpenType = MenuOpenType.NONE, Visible = true, Sort = 0, Status = CommonStatus.ENABLE },","SYS_ORG_DEL"]
[19005,{"$f":"A$120","v":19000},{"$f":"C$120&\"[\"&B125&\"],\"","v":"[0],[19000],"},"用户管理",{"$f":"E$120&\"/\"&D125","v":"系统管理/用户管理"},"user","MenuType.MENU",null,{"$f":"I$120&\"/\"&F125","v":"/sys/user"},null,null,"MenuOpenType.COMPONENT","true",20,"CommonStatus.ENABLE","            new SysMenu { Id = 19005, Pid = 19000, Pids = \"[0],[19000],\", Name = \"用户管理\", Code = \"user\", MenuType = MenuType.MENU, Icon = \"\", Router = \"/sys/user\", Component = \"\", Permission = \"\", OpenType = MenuOpenType.COMPONENT, Visible = true, Sort = 20, Status = CommonStatus.ENABLE },",{"$f":"UPPER(SUBSTITUTE(SUBSTITUTE(K125,\"-\",\"_\"),\".\",\"_\"))","v":""}]
[19006,{"$f":"A$125","v":19005},{"$f":"C$125&\"[\"&B126&\"],\"","v":"[0],[19000],[19005],"},"添加",{"$f":"E$125&\"/\"&D126","v":"系统管理/用户管理/添加"},"add","MenuType.BUTTON",null,null,null,{"$f":"F$120&\".\"&F$125&\".\"&F126","v":"sys.user.add"},"MenuOpenType.NONE","true",0,"CommonStatus.ENABLE","            new SysMenu { Id = 19006, Pid = 19005, Pids = \"[0],[19000],[19005],\", Name = \"添加\", Code = \"add\", MenuType = MenuType.BUTTON, Icon = \"\", Router = \"\", Component = \"\", Permission = \"sys.user.add\", OpenType = MenuOpenType.NONE, Visible = true, Sort = 0, Status = CommonStatus.ENABLE },",{"$f":"UPPER(SUBSTITUTE(SUBSTITUTE(K126,\"-\",\"_\"),\".\",\"_\"))","v":"SYS_USER_ADD"}]
[19007,19005,{"$f":"C$125&\"[\"&B127&\"],\"","v":"[0],[19000],[19005],"},"修改","系统管理/用户管理/修改","edit","MenuType.BUTTON",null,null,null,"sys.user.edit","MenuOpenType.NONE","true",0,"CommonStatus.ENABLE","            new SysMenu { Id = 19007, Pid = 19005, Pids = \"[0],[19000],[19005],\", Name = \"修改\", Code = \"edit\", MenuType = MenuType.BUTTON, Icon = \"\", Router = \"\", Component = \"\", Permission = \"sys.user.edit\", OpenType = MenuOpenType.NONE, Visible = true, Sort = 0, Status = CommonStatus.ENABLE },",{"$f":"UPPER(SUBSTITUTE(SUBSTITUTE(K127,\"-\",\"_\"),\".\",\"_\"))","v":"SYS_USER_EDIT"}]
[19008,19005,{"$f":"C$125&\"[\"&B128&\"],\"","v":"[0],[19000],[19005],"},"删除","系统管理/用户管理/删除","del","MenuType.BUTTON",null,null,null,"sys.user.del","MenuOpenType.NONE","true",0,"CommonStatus.ENABLE","            new SysMenu { Id = 19008, Pid = 19005, Pids = \"[0],[19000],[19005],\", Name = \"删除\", Code = \"del\", MenuType = MenuType.BUTTON, Icon = \"\", Router = \"\", Component = \"\", Permission = \"sys.user.del\", OpenType = MenuOpenType.NONE, Visible = true, Sort = 0, Status = CommonStatus.ENABLE },",{"$f":"UPPER(SUBSTITUTE(SUBSTITUTE(K128,\"-\",\"_\"),\".\",\"_\"))","v":"SYS_USER_DEL"}]
[19009,{"$f":"A$120","v":19000},{"$f":"C$120&\"[\"&B129&\"],\"","v":"[0],[19000],"},"角色权限",{"$f":"E$120&\"/\"&D129","v":"系统管理/角色权限"},"role","MenuType.MENU",null,{"$f":"I$120&\"/\"&F129","v":"/sys/role"},null,null,"MenuOpenType.COMPONENT","true",30,"CommonStatus.ENABLE","            new SysMenu { Id = 19009, Pid = 19000, Pids = \"[0],[19000],\", Name = \"角色权限\", Code = \"role\", MenuType = MenuType.MENU, Icon = \"\", Router = \"/sys/role\", Component = \"\", Permission = \"\", OpenType = MenuOpenType.COMPONENT, Visible = true, Sort = 30, Status = CommonStatus.ENABLE },",{"$f":"UPPER(SUBSTITUTE(SUBSTITUTE(K129,\"-\",\"_\"),\".\",\"_\"))","v":""}]
[19010,{"$f":"A$129","v":19009},{"$f":"C$129&\"[\"&B130&\"],\"","v":"[0],[19000],[19009],"},"添加",{"$f":"E$129&\"/\"&D130","v":"系统管理/角色权限/添加"},"add","MenuType.BUTTON",null,null,null,{"$f":"F$120&\".\"&F$129&\".\"&F130","v":"sys.role.add"},"MenuOpenType.NONE","true",0,"CommonStatus.ENABLE","            new SysMenu { Id = 19010, Pid = 19009, Pids = \"[0],[19000],[19009],\", Name = \"添加\", Code = \"add\", MenuType = MenuType.BUTTON, Icon = \"\", Router = \"\", Component = \"\", Permission = \"sys.role.add\", OpenType = MenuOpenType.NONE, Visible = true, Sort = 0, Status = CommonStatus.ENABLE },",{"$f":"UPPER(SUBSTITUTE(SUBSTITUTE(K130,\"-\",\"_\"),\".\",\"_\"))","v":"SYS_ROLE_ADD"}]
[19011,19009,{"$f":"C$129&\"[\"&B131&\"],\"","v":"[0],[19000],[19009],"},"修改",{"$f":"E$129&\"/\"&D131","v":"系统管理/角色权限/修改"},"edit","MenuType.BUTTON",null,null,null,{"$f":"F$120&\".\"&F$129&\".\"&F131","v":"sys.role.edit"},"MenuOpenType.NONE","true",0,"CommonStatus.ENABLE","            new SysMenu { Id = 19011, Pid = 19009, Pids = \"[0],[19000],[19009],\", Name = \"修改\", Code = \"edit\", MenuType = MenuType.BUTTON, Icon = \"\", Router = \"\", Component = \"\", Permission = \"sys.role.edit\", OpenType = MenuOpenType.NONE, Visible = true, Sort = 0, Status = CommonStatus.ENABLE },",{"$f":"UPPER(SUBSTITUTE(SUBSTITUTE(K131,\"-\",\"_\"),\".\",\"_\"))","v":"SYS_ROLE_EDIT"}]
[19012,19009,{"$f":"C$129&\"[\"&B132&\"],\"","v":"[0],[19000],[19009],"},"删除",{"$f":"E$129&\"/\"&D132","v":"系统管理/角色权限/删除"},"del","MenuType.BUTTON",null,null,null,{"$f":"F$120&\".\"&F$129&\".\"&F132","v":"sys.role.del"},"MenuOpenType.NONE","true",0,"CommonStatus.ENABLE","            new SysMenu { Id = 19012, Pid = 19009, Pids = \"[0],[19000],[19009],\", Name = \"删除\", Code = \"del\", MenuType = MenuType.BUTTON, Icon = \"\", Router = \"\", Component = \"\", Permission = \"sys.role.del\", OpenType = MenuOpenType.NONE, Visible = true, Sort = 0, Status = CommonStatus.ENABLE },",{"$f":"UPPER(SUBSTITUTE(SUBSTITUTE(K132,\"-\",\"_\"),\".\",\"_\"))","v":"SYS_ROLE_DEL"}]
[19013,19009,{"$f":"C$129&\"[\"&B133&\"],\"","v":"[0],[19000],[19009],"},"授权",{"$f":"E$129&\"/\"&D133","v":"系统管理/角色权限/授权"},"grant","MenuType.BUTTON",null,null,null,{"$f":"F$120&\".\"&F$129&\".\"&F133","v":"sys.role.grant"},"MenuOpenType.NONE","true",0,"CommonStatus.ENABLE","            new SysMenu { Id = 19013, Pid = 19009, Pids = \"[0],[19000],[19009],\", Name = \"授权\", Code = \"grant\", MenuType = MenuType.BUTTON, Icon = \"\", Router = \"\", Component = \"\", Permission = \"sys.role.grant\", OpenType = MenuOpenType.NONE, Visible = true, Sort = 0, Status = CommonStatus.ENABLE },",{"$f":"UPPER(SUBSTITUTE(SUBSTITUTE(K133,\"-\",\"_\"),\".\",\"_\"))","v":"SYS_ROLE_GRANT"}]
[19014,{"$f":"A$120","v":19000},{"$f":"C$120&\"[\"&B134&\"],\"","v":"[0],[19000],"},"功能管理",{"$f":"E$120&\"/\"&D134","v":"系统管理/功能管理"},"menu","MenuType.MENU",null,{"$f":"I$120&\"/\"&F134","v":"/sys/menu"},null,null,"MenuOpenType.COMPONENT","true",40,"CommonStatus.ENABLE","            new SysMenu { Id = 19014, Pid = 19000, Pids = \"[0],[19000],\", Name = \"功能管理\", Code = \"menu\", MenuType = MenuType.MENU, Icon = \"\", Router = \"/sys/menu\", Component = \"\", Permission = \"\", OpenType = MenuOpenType.COMPONENT, Visible = true, Sort = 40, Status = CommonStatus.ENABLE },",{"$f":"UPPER(SUBSTITUTE(SUBSTITUTE(K134,\"-\",\"_\"),\".\",\"_\"))","v":""}]
[19015,{"$f":"A$134","v":19014},{"$f":"C$134&\"[\"&B135&\"],\"","v":"[0],[19000],[19014],"},"添加",{"$f":"E$134&\"/\"&D135","v":"系统管理/功能管理/添加"},"add","MenuType.BUTTON",null,null,null,{"$f":"F$120&\".\"&F$134&\".\"&F135","v":"sys.menu.add"},"MenuOpenType.NONE","true",0,"CommonStatus.ENABLE","            new SysMenu { Id = 19015, Pid = 19014, Pids = \"[0],[19000],[19014],\", Name = \"添加\", Code = \"add\", MenuType = MenuType.BUTTON, Icon = \"\", Router = \"\", Component = \"\", Permission = \"sys.menu.add\", OpenType = MenuOpenType.NONE, Visible = true, Sort = 0, Status = CommonStatus.ENABLE },",{"$f":"UPPER(SUBSTITUTE(SUBSTITUTE(K135,\"-\",\"_\"),\".\",\"_\"))","v":"SYS_MENU_ADD"}]
[19016,{"$f":"A$134","v":19014},{"$f":"C$134&\"[\"&B136&\"],\"","v":"[0],[19000],[19014],"},"修改",{"$f":"E$134&\"/\"&D136","v":"系统管理/功能管理/修改"},"edit","MenuType.BUTTON",null,null,null,{"$f":"F$120&\".\"&F$134&\".\"&F136","v":"sys.menu.edit"},"MenuOpenType.NONE","true",0,"CommonStatus.ENABLE","            new SysMenu { Id = 19016, Pid = 19014, Pids = \"[0],[19000],[19014],\", Name = \"修改\", Code = \"edit\", MenuType = MenuType.BUTTON, Icon = \"\", Router = \"\", Component = \"\", Permission = \"sys.menu.edit\", OpenType = MenuOpenType.NONE, Visible = true, Sort = 0, Status = CommonStatus.ENABLE },",{"$f":"UPPER(SUBSTITUTE(SUBSTITUTE(K136,\"-\",\"_\"),\".\",\"_\"))","v":"SYS_MENU_EDIT"}]
[19017,{"$f":"A$134","v":19014},{"$f":"C$134&\"[\"&B137&\"],\"","v":"[0],[19000],[19014],"},"删除",{"$f":"E$134&\"/\"&D137","v":"系统管理/功能管理/删除"},"del","MenuType.BUTTON",null,null,null,{"$f":"F$120&\".\"&F$134&\".\"&F137","v":"sys.menu.del"},"MenuOpenType.NONE","true",0,"CommonStatus.ENABLE","            new SysMenu { Id = 19017, Pid = 19014, Pids = \"[0],[19000],[19014],\", Name = \"删除\", Code = \"del\", MenuType = MenuType.BUTTON, Icon = \"\", Router = \"\", Component = \"\", Permission = \"sys.menu.del\", OpenType = MenuOpenType.NONE, Visible = true, Sort = 0, Status = CommonStatus.ENABLE },",{"$f":"UPPER(SUBSTITUTE(SUBSTITUTE(K137,\"-\",\"_\"),\".\",\"_\"))","v":"SYS_MENU_DEL"}]
[19018,{"$f":"A$120","v":19000},{"$f":"C$120&\"[\"&B138&\"],\"","v":"[0],[19000],"},"日志管理",{"$f":"E$120&\"/\"&D138","v":"系统管理/日志管理"},"log","MenuType.FOLDER",null,{"$f":"I$120&\"/\"&F138","v":"/sys/log"},null,null,"MenuOpenType.NONE","true",50,"CommonStatus.ENABLE","            new SysMenu { Id = 19018, Pid = 19000, Pids = \"[0],[19000],\", Name = \"日志管理\", Code = \"log\", MenuType = MenuType.FOLDER, Icon = \"\", Router = \"/sys/log\", Component = \"\", Permission = \"\", OpenType = MenuOpenType.NONE, Visible = true, Sort = 50, Status = CommonStatus.ENABLE },",{"$f":"UPPER(SUBSTITUTE(SUBSTITUTE(K138,\"-\",\"_\"),\".\",\"_\"))","v":""}]
[19019,{"$f":"A$138","v":19018},{"$f":"C$138&\"[\"&B139&\"],\"","v":"[0],[19000],[19018],"},"异常日志",{"$f":"E$138&\"/\"&D139","v":"系统管理/日志管理/异常日志"},"ex","MenuType.MENU",null,{"$f":"I$138&\"/\"&F139","v":"/sys/log/ex"},null,null,"MenuOpenType.COMPONENT","true",10,"CommonStatus.ENABLE","            new SysMenu { Id = 19019, Pid = 19018, Pids = \"[0],[19000],[19018],\", Name = \"异常日志\", Code = \"ex\", MenuType = MenuType.MENU, Icon = \"\", Router = \"/sys/log/ex\", Component = \"\", Permission = \"\", OpenType = MenuOpenType.COMPONENT, Visible = true, Sort = 10, Status = CommonStatus.ENABLE },",""]
[19020,{"$f":"A$139","v":19019},{"$f":"C$139&\"[\"&B140&\"],\"","v":"[0],[19000],[19018],[19019],"},"清除日志",{"$f":"E$139&\"/\"&D140","v":"系统管理/日志管理/异常日志/清除日志"},"clear","MenuType.BUTTON",null,null,null,{"$f":"F$120&\".\"&F$138&\".\"&F$139&\".\"&F140","v":"sys.log.ex.clear"},"MenuOpenType.NONE","true",0,"CommonStatus.ENABLE","            new SysMenu { Id = 19020, Pid = 19019, Pids = \"[0],[19000],[19018],[19019],\", Name = \"清除日志\", Code = \"clear\", MenuType = MenuType.BUTTON, Icon = \"\", Router = \"\", Component = \"\", Permission = \"sys.log.ex.clear\", OpenType = MenuOpenType.NONE, Visible = true, Sort = 0, Status = CommonStatus.ENABLE },","SYS_LOG_EX_CLEAR"]
[19021,{"$f":"A$138","v":19018},{"$f":"C$138&\"[\"&B141&\"],\"","v":"[0],[19000],[19018],"},"访问日志","系统管理/日志管理/访问日志","vis","MenuType.MENU",null,"/sys/log/vis",null,null,"MenuOpenType.COMPONENT","true",20,"CommonStatus.ENABLE","            new SysMenu { Id = 19021, Pid = 19018, Pids = \"[0],[19000],[19018],\", Name = \"访问日志\", Code = \"vis\", MenuType = MenuType.MENU, Icon = \"\", Router = \"/sys/log/vis\", Component = \"\", Permission = \"\", OpenType = MenuOpenType.COMPONENT, Visible = true, Sort = 20, Status = CommonStatus.ENABLE },",""]
[19022,{"$f":"A$141","v":19021},{"$f":"C$141&\"[\"&B142&\"],\"","v":"[0],[19000],[19018],[19021],"},"清除日志",{"$f":"E$141&\"/\"&D142","v":"系统管理/日志管理/访问日志/清除日志"},"clear","MenuType.BUTTON",null,null,null,{"$f":"F$120&\".\"&F$138&\".\"&F$141&\".\"&F142","v":"sys.log.vis.clear"},"MenuOpenType.NONE","true",0,"CommonStatus.ENABLE","            new SysMenu { Id = 19022, Pid = 19021, Pids = \"[0],[19000],[19018],[19021],\", Name = \"清除日志\", Code = \"clear\", MenuType = MenuType.BUTTON, Icon = \"\", Router = \"\", Component = \"\", Permission = \"sys.log.vis.clear\", OpenType = MenuOpenType.NONE, Visible = true, Sort = 0, Status = CommonStatus.ENABLE },","SYS_LOG_VIS_CLEAR"]
[19023,{"$f":"A$138","v":19018},{"$f":"C$138&\"[\"&B143&\"],\"","v":"[0],[19000],[19018],"},"操作日志","系统管理/日志管理/操作日志","op","MenuType.MENU",null,"/sys/log/op",null,null,"MenuOpenType.COMPONENT","true",30,"CommonStatus.ENABLE","            new SysMenu { Id = 19023, Pid = 19018, Pids = \"[0],[19000],[19018],\", Name = \"操作日志\", Code = \"op\", MenuType = MenuType.MENU, Icon = \"\", Router = \"/sys/log/op\", Component = \"\", Permission = \"\", OpenType = MenuOpenType.COMPONENT, Visible = true, Sort = 30, Status = CommonStatus.ENABLE },",""]
[19024,{"$f":"A$143","v":19023},{"$f":"C$141&\"[\"&B144&\"],\"","v":"[0],[19000],[19018],[19023],"},"清除日志",{"$f":"E$143&\"/\"&D144","v":"系统管理/日志管理/操作日志/清除日志"},"clear","MenuType.BUTTON",null,null,null,{"$f":"F$120&\".\"&F$138&\".\"&F$143&\".\"&F144","v":"sys.log.op.clear"},"MenuOpenType.NONE","true",0,"CommonStatus.ENABLE","            new SysMenu { Id = 19024, Pid = 19023, Pids = \"[0],[19000],[19018],[19023],\", Name = \"清除日志\", Code = \"clear\", MenuType = MenuType.BUTTON, Icon = \"\", Router = \"\", Component = \"\", Permission = \"sys.log.op.clear\", OpenType = MenuOpenType.NONE, Visible = true, Sort = 0, Status = CommonStatus.ENABLE },","SYS_LOG_OP_CLEAR"]

{"sheet":"缩略词","index":1,"n_rows":22,"n_cols":3,"rows_kept":22,"cut":false,"hidden":false,"merged":[]}
["名词","名称","缩写"]
[null,"purchase","pur"]
[null,"manufacture","mf"]
[null,"quality","qa"]
[null,"warehouse","wh"]
[null,"warehouse place","wh-p"]
[null,"warehouse place group","wh-pg"]
[null,"customer","cust"]
[null,"supplier","sup"]
[null,"unit group","ug"]
[null,"work type","wt"]
[null,"k3 dept","kdept"]
[null,"k3 sync","ksync"]
[null,"workbench","wb"]
[null,"transfer check","tcheck"]
[null,"stock in","stk-in"]
[null,"stock out","stk-out"]
[null,"inventory","inv"]
[null,"allocation","alloc"]
[null,"material","mat"]
["生产领料","production material requisition","pmr"]
["委外","subcontract","scont"]